Workbook

Sheet For Office Use Only (hidden)
A1: 1 | B1: 1000 Alamance Community College | C1: 1000 | I1: Select One:
A2: 2 | B2: 1100 Alamance Community College - Career College | C2: 1100 | E2: 1 | F2: AM Arboriculture: Classroom (3hr) | I2: S
A3: 3 | B3: 1200 Auburn University | C3: 1200 | E3: 2 | F3: AM Arboriculture: Hands-On (3hr) | I3: M
A4: 4 | B4: 1300 Brigham Young University - Idaho | C4: 1300 | E4: 3 | F4: AM Computer Aided Landscape Design (3hr) | I4: L
A5: 5 | B5: 1400 Brigham Young University - Provo | C5: 1400 | E5: 4 | F5: AM Hardscape Installation (3hr) | I5: XL
A6: 6 | B6: 1500 Cal Poly - Pomona | C6: 1500 | E6: 5 | F6: AM Irrigation 101: Irrigation Hands-on (3hr) | I6: XXL
A7: 7 | B7: 1600 Cal Poly - San Luis Obispo | C7: 1600 | E7: 6 | F7: AM Irrigation 201: Principles of Design (3hr) | I7: XXXL
A8: 8 | B8: 1700 Carteret Community College | C8: 1700 | E8: 7 | F8: AM Landscape Lighting (3hr)
A9: 9 | B9: 1800 Chattahoochee Technical College | C9: 1800 | E9: 8 | F9: AM Truck and Trailer Operation (3hr)
A10: 10 | B10: 1900 Cincinnati State Tech. & Comm. College | C10: 1900 | E10: 9 | F10: AM Woody Ornamental Plant ID (3hr)
A11: 11 | B11: 2000 Clackamas Community College | C11: 2000 | E11: 10 | F11: AM Compact Track/Skid Steer Loader Operation (Session 1)
A12: 12 | B12: 2100 Clemson University | C12: 2100 | E12: 11 | F12: AM Construction Cost Estimating (Session 1)
A13: 13 | B13: 2200 College of DuPage | C13: 2200 | E13: 12 | F13: AM NALPF/KFF Business Track - Customer Mgmt / Busn Development (Session 1)
A14: 14 | B14: 2300 College of Western Idaho | C14: 2300 | E14: 13 | F14: AM Safety First (Session 1)
A15: 15 | B15: 2400 Colorado State University | C15: 2400 | E15: 14 | F15: AM Sales Presentation (Session 1)
A16: 16 | B16: 2500 Columbus State Community College | C16: 2500 | E16: 15 | F16: AM Small Engine Repair (Session 1)
A17: 17 | B17: 2600 County College of Morrie | C17: 2600 | E17: 16 | F17: AM Climate Change & Arboriculture: As Earth Warms, Trees Feel the Heat (Session 2)
A18: 18 | B18: 2700 Cuyahoga Community College | C18: 2700 | E18: 17 | F18: AM Construction Cost Estimating (Session 2)
A19: 19 | B19: 2800 Cuyamaca College | C19: 2800 | E19: 18 | F19: AM Power Management (Session 2)
A20: 20 | B20: 2900 Eastern Kentucky University | C20: 2900 | E20: 19 | F20: AM Pruning (Session 2)
A21: 21 | B21: 3000 Gateway Technical College | C21: 3000 | E21: 20 | F21: AM Sales Presentation (Session 2)
A22: 22 | B22: 3100 Gwinnett Technical College | C22: 3100 | E22: 21 | F22: AM Small Engine Repair (Session 2)
A23: 23 | B23: 3200 Hawkeye Community College | C23: 3200 | E23: 22 | F23: AM Sustainable Fertilization: Building Business and Plant Health (Session 2)
A24: 24 | B24: 3300 Hinds Community College | C24: 3300 | E24: 23 | F24: PM 3D Exterior Landscape Design (3hr)
A25: 25 | B25: 3400 Houston Community College | C25: 3400 | E25: 24 | F25: PM Arboriculture: Hands-On (3hr)
A26: 26 | B26: 3500 Illinois Central College | C26: 3500 | E26: 25 | F26: PM Hardscape Installation (3hr)
A27: 27 | B27: 3600 Illinois State University | C27: 3600 | E27: 26 | F27: PM Irrigation 101: Irrigation Hands-on (3hr)
A28: 28 | B28: 3700 Iowa State University | C28: 3700 | E28: 27 | F28: PM Landscape Lighting (3hr)
A29: 29 | B29: 3800 Joliet Junior College | C29: 3800 | E29: 28 | F29: PM Plant Problem Diagnosis (3hr)
A30: 30 | B30: 3900 Kansas State University | C30: 3900 | E30: 29 | F30: PM Truck and Trailer Operation (3hr)
A31: 31 | B31: 4000 Kirkwood Community College | C31: 4000 | E31: 30 | F31: PM Woody Ornamental Plant ID (3hr)
A32: 32 | B32: 4100 Kishwaukee College | C32: 4100 | E32: 31 | F32: PM Compact Excavator Operation (Session 3)
A33: 33 | B33: 4200 Knox County Career Center | C33: 4200 | E33: 32 | F33: PM Compact Track/Skid Steer Loader Operation (Session 3)
A34: 34 | B34: 4300 Lakeshore Technical College | C34: 4300 | E34: 33 | F34: PM Maintenance Cost Estimating (Session 3)
A35: 35 | B35: 4400 Merced College | C35: 4400 | E35: 34 | F35: PM Power Management (Session 3)
A36: 36 | B36: 4500 Michigan State University | C36: 4500 | E36: 35 | F36: PM Evolution in Landscaping - The Rise of Robotic Mowing in Turf Care (Session 3)
A37: 37 | B37: 4600 Milwaukee Area Technical College | C37: 4600 | E37: 36 | F37: PM The Design Process: Concept to Outdoor Space (Session 3)
A38: 38 | B38: 4700 Mississippi State University | C38: 4700 | E38: 37 | F38: PM Biophilic Interiors (Session 4)
A39: 39 | B39: 4800 NCTA/University of Nebraska | C39: 4800 | E39: 38 | F39: PM Climate Change & Arboriculture: As Earth Warms, Trees Feel the Heat (Session 4)
A40: 40 | B40: 4900 Niagara Parks Commission School of Horticulture | C40: 4900 | E40: 39 | F40: PM Compact Excavator Operation (Session 4)
A41: 41 | B41: 5000 North Carolina State University | C41: 5000 | E41: 40 | F41: PM Maintenance Cost Estimating (Session 4)
A42: 42 | B42: 5100 North Dakota State University | C42: 5100 | E42: 41 | F42: PM NALPF/KFF Business Track - Leadership & Company Culture (Session 4)
A43: 43 | B43: 5200 North Georgia Technical College | C43: 5200 | E43: 42 | F43: PM Pruning (Session 4)
A44: 44 | B44: 5300 Ohio Hi-Point Career Center | C44: 5300
A45: 45 | B45: 5400 Ohio State ATI | C45: 5400
A46: 46 | B46: 5500 Oklahoma State University - Oklahoma City | C46: 5500
A47: 47 | B47: 5600 Oklahoma State University - Stillwater | C47: 5600
A48: 48 | B48: 5700 Oregon State University | C48: 5700
A49: 49 | B49: 5800 Owens Community College | C49: 5800
A50: 50 | B50: 5900 Ozarks Tech. Community College | C50: 5900
A51: 51 | B51: 6000 Palo Alto College | C51: 6000
A52: 52 | B52: 6100 Parkland College | C52: 6100
A53: 53 | B53: 6200 Penn State | C53: 6200
A54: 54 | B54: 6300 Pennsylvania College of Technology | C54: 6300
A55: 55 | B55: 6400 Piedmont Technical College | C55: 6400
A56: 56 | B56: 6500 Portland Community College | C56: 6500
A57: 57 | B57: 6600 Purdue University | C57: 6600
A58: 58 | B58: 6700 Rochester Community & Technical College | C58: 6700
A59: 59 | B59: 6800 Sam Houston State University | C59: 6800
A60: 60 | B60: 6900 Sandhills Community College | C60: 6900
A61: 61 | B61: 7000 Shasta College | C61: 7000
A62: 62 | B62: 7100 Southeast Missouri State University | C62: 7100
A63: 63 | B63: 7200 Southeast Technical Institute | C63: 7200
A64: 64 | B64: 7300 Southern Illinois University - Carbondale | C64: 7300
A65: 65 | B65: 7400 Southwestern Illinois College | C65: 7400
A66: 66 | B66: 7500 Spokane Community College | C66: 7500
A67: 67 | B67: 7600 Stephen F. Austin State University | C67: 7600
A68: 68 | B68: 7700 SUNY Cobleskill | C68: 7700
A69: 69 | B69: 7800 SUNY Delhi | C69: 7800
A70: 70 | B70: 7900 Tarrant County College | C70: 7900
A71: 71 | B71: 8000 Texas A&M | C71: 8000
A72: 72 | B72: 8100 Tolles Career & Technical Center | C72: 8100
A73: 73 | B73: 8200 Tuskegee University | C73: 8200
A74: 74 | B74: 8300 University of Florida | C74: 8300
A75: 75 | B75: 8400 University of Georgia | C75: 8400
A76: 76 | B76: 8500 University of Illinois - Champaign | C76: 8500
A77: 77 | B77: 8600 University of Maryland | C77: 8600
A78: 78 | B78: 8700 University of Massachusetts - Amherst | C78: 8700
A79: 79 | B79: 8800 University of Mount Olive | C79: 8800
A80: 80 | B80: 8900 University of Rhode Island | C80: 8900
A81: 81 | B81: 9000 University of Wisconsin-Platteville | C81: 9000
A82: 82 | B82: 9100 Upper Valley Career Center | C82: 9100
A83: 83 | B83: 9200 Virginia Tech | C83: 9200
A84: 84 | B84: 9300 Wallace State Community College | C84: 9300
A85: 85 | B85: 9400 West Virginia University | C85: 9400
A86: 86 | B86: 9500 Wilkes Community College | C86: 9500
A87: 87 | B87: 9600 Williamson College of the Trades | C87: 9600
A88: 88 | B88: 9900 School Not Listed | C88: 9900

Sheet Registration
A2: 2024 National Collegiate Landscape Competition Registration Form
J3: * If your school does not appear in the list, select 9900 from the list and enter your school name here:
A4: Select Your School: | B4: 3 | T4: Registration Data: Copy & Paste as Values | AD4: Event Registration Data: Copy & Paste as Values First | AI4: Workshop Registrations: Copy & Paste as Values First
A5: 1 | B5: =INDEX('For Office Use Only'!A1:B89,A5,0) -> 1000 Alamance Community College
B6: =VLOOKUP(A5, 'For Office Use Only'!A1:C89, 3, FALSE) -> 1000
A7: Student Roster | J7: Event Registration | P7: Workshop Registrations
J8: Events in Blue REQUIRE TWO Students per School
E9: Faculty | F9: T-Shirt | G9: Graduation | H9: Opt-In Free | AB9: DO NOT COPY | AD9: DO NOT COPY | AI9: DO NOT COPY | AJ9: DO NOT COPY
A10: Student No. | B10: First Name | C10: Last Name | D10: Email Address | E10: Indicator (X) | F10: Size | G10: Date | H10: NALP Membership | J10: Event Description | K10: Participating Student | P10: Select Workshop: | Q10: Select Student: | T10: StudentID | U10: UnivID | V10: FirstName | W10: LastName | X10: Fac Ind | Y10: Email Address | Z10: TShirtSize | AA10: OptIn | AB10: Name for Lookup | AD10: Student | AE10: StudentID | AF10: EventID | AG10: UniversityID | AI10: Workshop | AJ10: Student | AK10: StudentID | AL10: WorkshopID | AM10: UniversityID
B11: First Name Here | C11: Last Name Here | D11: jstudent@school.edu | E11: X | H11: X | I11: 1 | J11: 3D Exterior Landscape Design | AE11: =AD11+AG11 -> 1000 | AF11: 1 | AG11: =$B$6 -> 1000 | AK11: =$B$6+AJ11 -> 1000 | AL11: =AI11 -> 0 | AM11: =$B$6 -> 1000
A12: =B6+1 -> 1001 | F12: 1 | T12: =A12 -> 1001 | U12: =$B$6 -> 1000 | V12: =B12 -> 0 | W12: =C12 -> 0 | X12: =IF(E12="X",1,0) -> 0 | Y12: =D12 -> 0 | Z12: =IF(F12=2,"S",IF(F12=3,"M",IF(F12=4,"L",IF(F12=5,"XL",IF(F12=6,"XXL",IF(F12=7,"XXXL")))))) -> FALSE | AA12: =IF(H12="x",1,0) -> 0 | AB12: =A12&" "&B12&" "&C12 -> 1001 | AK12: =$B$6+AJ12 -> 1000 | AL12: =AI12 -> 0 | AM12: =$B$6 -> 1000
A13: =B6+2 -> 1002 | F13: 1 | I13: 2 | J13: Annual & Perennial Identification | T13: =A13 -> 1002 | U13: =$B$6 -> 1000 | V13: =B13 -> 0 | W13: =C13 -> 0 | X13: =IF(E13="X",1,0) -> 0 | Y13: =D13 -> 0 | Z13: =IF(F13=2,"S",IF(F13=3,"M",IF(F13=4,"L",IF(F13=5,"XL",IF(F13=6,"XXL",IF(F13=7,"XXXL")))))) -> FALSE | AA13: =IF(H13="x",1,0) -> 0 | AB13: =A13&" "&B13&" "&C13 -> 1002 | AE13: =AD13+AG13 -> 1000 | AF13: 2 | AG13: =$B$6 -> 1000 | AK13: 1000 | AL13: 0 | AM13: 1000
A14: =B6+3 -> 1003 | F14: 1 | I14: 2 | J14: Annual & Perennial Identification | T14: 1003 | U14: 1000 | V14: 0 | W14: 0 | X14: 0 | Y14: 0 | Z14: FALSE | AA14: 0 | AB14: 1003 | AE14: 1000 | AF14: 2 | AG14: 1000 | AK14: 1000 | AL14: 0 | AM14: 1000
A15: =B6+4 -> 1004 | F15: 1 | T15: 1004 | U15: 1000 | V15: 0 | W15: 0 | X15: 0 | Y15: 0 | Z15: FALSE | AA15: 0 | AB15: 1004 | AK15: 1000 | AL15: 0 | AM15: 1000
A16: =B6+5 -> 1005 | F16: 1 | I16: 3 | J16: Arboriculture Techniques | T16: 1005 | U16: 1000 | V16: =B16 -> 0 | W16: 0 | X16: 0 | Y16: =D16 -> 0 | Z16: FALSE | AA16: 0 | AB16: =A16&" "&B16&" "&C16 -> 1005 | AE16: 1000 | AF16: 3 | AG16: 1000 | AK16: 1000 | AL16: 0 | AM16: 1000
A17: =B6+6 -> 1006 | F17: 1 | I17: 3 | J17: Arboriculture Techniques | T17: 1006 | U17: 1000 | V17: 0 | W17: 0 | X17: 0 | Y17: 0 | Z17: FALSE | AA17: 0 | AB17: 1006 | AE17: 1000 | AF17: 3 | AG17: 1000 | AK17: 1000 | AL17: 0 | AM17: 1000
A18: =B6+7 -> 1007 | F18: 1 | T18: 1007 | U18: 1000 | V18: 0 | W18: 0 | X18: 0 | Y18: 0 | Z18: FALSE | AA18: 0 | AB18: 1007 | AK18: 1000 | AL18: 0 | AM18: 1000
A19: =B6+8 -> 1008 | F19: 1 | I19: 4 | J19: Business Management | T19: 1008 | U19: 1000 | V19: 0 | W19: 0 | X19: 0 | Y19: 0 | Z19: FALSE | AA19: 0 | AB19: 1008 | AE19: 1000 | AF19: 4 | AG19: 1000 | AK19: 1000 | AL19: 0 | AM19: 1000
A20: =B6+9 -> 1009 | F20: 1 | I20: 4 | J20: Business Management | T20: 1009 | U20: 1000 | V20: 0 | W20: 0 | X20: 0 | Y20: 0 | Z20: FALSE | AA20: 0 | AB20: 1009 | AE20: 1000 | AF20: 4 | AG20: 1000 | AK20: 1000 | AL20: 0 | AM20: 1000
A21: =B6+10 -> 1010 | F21: 1 | T21: 1010 | U21: 1000 | V21: 0 | W21: 0 | X21: 0 | Y21: 0 | Z21: FALSE | AA21: 0 | AB21: 1010 | AK21: 1000 | AL21: 0 | AM21: 1000
A22: =B6+11 -> 1011 | F22: 1 | I22: 5 | J22: Compact Excavator Operation | T22: 1011 | U22: 1000 | V22: 0 | W22: 0 | X22: 0 | Y22: 0 | Z22: FALSE | AA22: 0 | AB22: 1011 | AE22: 1000 | AF22: 5 | AG22: 1000 | AK22: 1000 | AL22: 0 | AM22: 1000
A23: =B6+12 -> 1012 | F23: 1 | T23: 1012 | U23: 1000 | V23: 0 | W23: 0 | X23: 0 | Y23: 0 | Z23: FALSE | AA23: 0 | AB23: 1012 | AK23: 1000 | AL23: 0 | AM23: 1000
A24: =B6+13 -> 1013 | F24: 1 | I24: 6 | J24: Compact Track/Skid Steer Loader Operation | T24: 1013 | U24: 1000 | V24: 0 | W24: 0 | X24: 0 | Y24: 0 | Z24: FALSE | AA24: 0 | AB24: 1013 | AE24: 1000 | AF24: 6 | AG24: 1000 | AK24: 1000 | AL24: 0 | AM24: 1000
A25: =B6+14 -> 1014 | F25: 1 | T25: 1014 | U25: 1000 | V25: 0 | W25: 0 | X25: 0 | Y25: 0 | Z25: FALSE | AA25: 0 | AB25: 1014 | AK25: 1000 | AL25: 0 | AM25: 1000
A26: =B6+15 -> 1015 | F26: 1 | I26: 7 | J26: Computer Aided Landscape Design | T26: 1015 | U26: 1000 | V26: 0 | W26: 0 | X26: 0 | Y26: 0 | Z26: FALSE | AA26: 0 | AB26: 1015 | AE26: 1000 | AF26: 7 | AG26: 1000 | AK26: 1000 | AL26: 0 | AM26: 1000
A27: =B6+16 -> 1016 | F27: 1 | T27: 1016 | U27: 1000 | V27: 0 | W27: 0 | X27: 0 | Y27: 0 | Z27: FALSE | AA27: 0 | AB27: 1016 | AK27: 1000 | AL27: 0 | AM27: 1000
A28: =B6+17 -> 1017 | F28: 1 | I28: 8 | J28: Construction Cost Estimating | T28: 1017 | U28: 1000 | V28: 0 | W28: 0 | X28: 0 | Y28: 0 | Z28: FALSE | AA28: 0 | AB28: 1017 | AE28: 1000 | AF28: 8 | AG28: 1000 | AK28: 1000 | AL28: 0 | AM28: 1000
A29: =B6+18 -> 1018 | F29: 1 | I29: 8 | J29: Construction Cost Estimating | T29: 1018 | U29: 1000 | V29: 0 | W29: 0 | X29: 0 | Y29: 0 | Z29: FALSE | AA29: 0 | AB29: 1018 | AE29: 1000 | AF29: 8 | AG29: 1000 | AK29: 1000 | AL29: 0 | AM29: 1000
A30: =B6+19 -> 1019 | F30: 1 | T30: 1019 | U30: 1000 | V30: 0 | W30: 0 | X30: 0 | Y30: 0 | Z30: FALSE | AA30: 0 | AB30: 1019 | AK30: 1000 | AL30: 0 | AM30: 1000
A31: =B6+20 -> 1020 | F31: 1 | I31: 9 | J31: Employee Development | T31: 1020 | U31: 1000 | V31: 0 | W31: 0 | X31: 0 | Y31: 0 | Z31: FALSE | AA31: 0 | AB31: 1020 | AE31: 1000 | AF31: 9 | AG31: 1000 | AK31: 1000 | AL31: 0 | AM31: 1000
A32: =B6+21 -> 1021 | F32: 1 | I32: 9 | J32: Employee Development | T32: 1021 | U32: 1000 | V32: 0 | W32: 0 | X32: 0 | Y32: 0 | Z32: FALSE | AA32: 0 | AB32: 1021 | AE32: 1000 | AF32: 9 | AG32: 1000 | AK32: 1000 | AL32: 0 | AM32: 1000
A33: =B6+22 -> 1022 | F33: 1 | T33: 1022 | U33: 1000 | V33: 0 | W33: 0 | X33: 0 | Y33: 0 | Z33: FALSE | AA33: 0 | AB33: 1022 | AK33: 1000 | AL33: 0 | AM33: 1000
A34: =B6+23 -> 1023 | F34: 1 | I34: 10 | J34: Exterior Landscape Design | T34: 1023 | U34: 1000 | V34: 0 | W34: 0 | X34: 0 | Y34: 0 | Z34: FALSE | AA34: 0 | AB34: 1023 | AE34: 1000 | AF34: 10 | AG34: 1000 | AK34: 1000 | AL34: 0 | AM34: 1000
A35: =B6+24 -> 1024 | F35: 1 | T35: 1024 | U35: 1000 | V35: 0 | W35: 0 | X35: 0 | Y35: 0 | Z35: FALSE | AA35: 0 | AB35: 1024 | AK35: 1000 | AL35: 0 | AM35: 1000
A36: =B6+25 -> 1025 | F36: 1 | I36: 11 | J36: Hardscape Installation | T36: 1025 | U36: 1000 | V36: 0 | W36: 0 | X36: 0 | Y36: 0 | Z36: FALSE | AA36: 0 | AB36: 1025 | AE36: 1000 | AF36: 11 | AG36: 1000 | AK36: 1000 | AL36: 0 | AM36: 1000
A37: =B6+26 -> 1026 | F37: 1 | I37: 11 | J37: Hardscape Installation | T37: 1026 | U37: 1000 | V37: 0 | W37: 0 | X37: 0 | Y37: 0 | Z37: FALSE | AA37: 0 | AB37: 1026 | AE37: 1000 | AF37: 11 | AG37: 1000 | AK37: 1000 | AL37: 0 | AM37: 1000
A38: =B6+27 -> 1027 | F38: 1 | T38: 1027 | U38: 1000 | V38: 0 | W38: 0 | X38: 0 | Y38: 0 | Z38: FALSE | AA38: 0 | AB38: 1027 | AK38: 1000 | AL38: 0 | AM38: 1000
A39: =B6+28 -> 1028 | F39: 1 | I39: 12 | J39: Interior Landscape Design | T39: 1028 | U39: 1000 | V39: 0 | W39: 0 | X39: 0 | Y39: 0 | Z39: FALSE | AA39: 0 | AB39: 1028 | AE39: 1000 | AF39: 12 | AG39: 1000 | AK39: 1000 | AL39: 0 | AM39: 1000
A40: =B6+29 -> 1029 | F40: 1 | T40: 1029 | U40: 1000 | V40: 0 | W40: 0 | X40: 0 | Y40: 0 | Z40: FALSE | AA40: 0 | AB40: 1029 | AK40: 1000 | AL40: 0 | AM40: 1000
A41: =B6+30 -> 1030 | F41: 1 | I41: 13 | J41: Interior Plant Identification | T41: 1030 | U41: 1000 | V41: 0 | W41: 0 | X41: 0 | Y41: 0 | Z41: FALSE | AA41: 0 | AB41: 1030 | AE41: =AD41+AG41 -> 1000 | AF41: 13 | AG41: 1000 | AK41: 1000 | AL41: 0 | AM41: 1000
A42: =B6+31 -> 1031 | F42: 1 | I42: 13 | J42: Interior Plant Identification | T42: 1031 | U42: 1000 | V42: 0 | W42: 0 | X42: 0 | Y42: 0 | Z42: FALSE | AA42: 0 | AB42: 1031 | AE42: 1000 | AF42: 13 | AG42: 1000 | AK42: 1000 | AL42: 0 | AM42: 1000
A43: =B6+32 -> 1032 | F43: 1 | T43: 1032 | U43: 1000 | V43: 0 | W43: 0 | X43: 0 | Y43: 0 | Z43: FALSE | AA43: 0 | AB43: 1032 | AK43: 1000 | AL43: 0 | AM43: 1000
A44: =B6+33 -> 1033 | F44: 1 | I44: 14 | J44: Irrigation Assembly | T44: 1033 | U44: 1000 | V44: 0 | W44: 0 | X44: 0 | Y44: 0 | Z44: FALSE | AA44: 0 | AB44: 1033 | AE44: 1000 | AF44: 14 | AG44: 1000 | AK44: 1000 | AL44: 0 | AM44: 1000
A45: =B6+34 -> 1034 | F45: 1 | I45: 14 | J45: Irrigation Assembly | T45: 1034 | U45: 1000 | V45: 0 | W45: 0 | X45: 0 | Y45: 0 | Z45: FALSE | AA45: 0 | AB45: 1034 | AE45: 1000 | AF45: 14 | AG45: 1000 | AK45: 1000 | AL45: 0 | AM45: 1000
A46: =B6+35 -> 1035 | F46: 1 | T46: 1035 | U46: 1000 | V46: 0 | W46: 0 | X46: 0 | Y46: 0 | Z46: FALSE | AA46: 0 | AB46: 1035 | AK46: 1000 | AL46: 0 | AM46: 1000
A47: =B6+36 -> 1036 | F47: 1 | I47: 15 | J47: Irrigation Design | T47: 1036 | U47: 1000 | V47: 0 | W47: 0 | X47: 0 | Y47: 0 | Z47: FALSE | AA47: 0 | AB47: 1036 | AE47: 1000 | AF47: 15 | AG47: 1000 | AK47: 1000 | AL47: 0 | AM47: 1000
A48: =B6+37 -> 1037 | F48: 1 | T48: 1037 | U48: 1000 | V48: 0 | W48: 0 | X48: 0 | Y48: 0 | Z48: FALSE | AA48: 0 | AB48: 1037 | AK48: 1000 | AL48: 0 | AM48: 1000
A49: =B6+38 -> 1038 | F49: 1 | I49: 16 | J49: Irrigation Troubleshooting | T49: 1038 | U49: 1000 | V49: 0 | W49: 0 | X49: 0 | Y49: 0 | Z49: FALSE | AA49: 0 | AB49: 1038 | AE49: =AD49+AG49 -> 1000 | AF49: 16 | AG49: 1000 | AK49: 1000 | AL49: 0 | AM49: 1000
A50: =B6+39 -> 1039 | F50: 1 | I50: 16 | J50: Irrigation Troubleshooting | T50: 1039 | U50: 1000 | V50: 0 | W50: 0 | X50: 0 | Y50: 0 | Z50: FALSE | AA50: 0 | AB50: 1039 | AE50: 1000 | AF50: 16 | AG50: 1000 | AK50: 1000 | AL50: 0 | AM50: 1000
A51: =B6+40 -> 1040 | F51: 1 | T51: 1040 | U51: 1000 | V51: 0 | W51: 0 | X51: 0 | Y51: 0 | Z51: FALSE | AA51: 0 | AB51: 1040 | AK51: 1000 | AL51: 0 | AM51: 1000
A52: =B6+41 -> 1041 | F52: 1 | I52: 17 | J52: Landscape Lighting | T52: 1041 | U52: 1000 | V52: 0 | W52: 0 | X52: 0 | Y52: 0 | Z52: FALSE | AA52: 0 | AB52: 1041 | AE52: 1000 | AF52: 17 | AG52: 1000 | AK52: 1000 | AL52: 0 | AM52: 1000
A53: =B6+42 -> 1042 | F53: 1 | T53: 1042 | U53: 1000 | V53: 0 | W53: 0 | X53: 0 | Y53: 0 | Z53: FALSE | AA53: 0 | AB53: 1042 | AK53: 1000 | AL53: 0 | AM53: 1000
A54: =B6+43 -> 1043 | F54: 1 | I54: 18 | J54: Landscape Maintenance Operations | T54: 1043 | U54: 1000 | V54: 0 | W54: 0 | X54: 0 | Y54: 0 | Z54: FALSE | AA54: 0 | AB54: 1043 | AE54: =AD54+AG54 -> 1000 | AF54: 18 | AG54: 1000 | AK54: 1000 | AL54: 0 | AM54: 1000
A55: =B6+44 -> 1044 | F55: 1 | I55: 18 | J55: Landscape Maintenance Operations | T55: 1044 | U55: 1000 | V55: 0 | W55: 0 | X55: 0 | Y55: 0 | Z55: FALSE | AA55: 0 | AB55: 1044 | AE55: 1000 | AF55: 18 | AG55: 1000 | AK55: 1000 | AL55: 0 | AM55: 1000
A56: =B6+45 -> 1045 | F56: 1 | T56: 1045 | U56: 1000 | V56: 0 | W56: 0 | X56: 0 | Y56: 0 | Z56: FALSE | AA56: 0 | AB56: 1045 | AK56: 1000 | AL56: 0 | AM56: 1000
A57: =B6+46 -> 1046 | F57: 1 | I57: 19 | J57: Landscape Plant Installation | T57: 1046 | U57: 1000 | V57: 0 | W57: 0 | X57: 0 | Y57: 0 | Z57: FALSE | AA57: 0 | AB57: 1046 | AE57: 1000 | AF57: 19 | AG57: 1000 | AK57: 1000 | AL57: 0 | AM57: 1000
A58: =B6+47 -> 1047 | F58: 1 | I58: 19 | J58: Landscape Plant Installation | T58: 1047 | U58: 1000 | V58: 0 | W58: 0 | X58: 0 | Y58: 0 | Z58: FALSE | AA58: 0 | AB58: 1047 | AE58: 1000 | AF58: 19 | AG58: 1000 | AK58: 1000 | AL58: 0 | AM58: 1000
A59: =B6+48 -> 1048 | F59: 1 | I59: 19 | J59: Landscape Plant Installation | T59: 1048 | U59: 1000 | V59: 0 | W59: 0 | X59: 0 | Y59: 0 | Z59: FALSE | AA59: 0 | AB59: 1048 | AE59: =AD59+AG59 -> 1000 | AF59: 19 | AG59: 1000 | AK59: 1000 | AL59: 0 | AM59: 1000
A60: =B6+49 -> 1049 | F60: 1 | T60: 1049 | U60: 1000 | V60: 0 | W60: 0 | X60: 0 | Y60: 0 | Z60: FALSE | AA60: 0 | AB60: 1049 | AK60: 1000 | AL60: 0 | AM60: 1000
A61: =B6+50 -> 1050 | F61: 1 | I61: 20 | J61: Maintenance Cost Estimating | T61: 1050 | U61: 1000 | V61: 0 | W61: 0 | X61: 0 | Y61: 0 | Z61: FALSE | AA61: 0 | AB61: 1050 | AE61: 1000 | AF61: 20 | AG61: 1000 | AK61: 1000 | AL61: 0 | AM61: 1000
A62: =B6+51 -> 1051 | F62: 1 | I62: 20 | J62: Maintenance Cost Estimating | T62: 1051 | U62: 1000 | V62: 0 | W62: 0 | X62: 0 | Y62: 0 | Z62: FALSE | AA62: 0 | AB62: 1051 | AE62: 1000 | AF62: 20 | AG62: 1000 | AK62: 1000 | AL62: 0 | AM62: 1000
A63: =B6+52 -> 1052 | F63: 1 | T63: 1052 | U63: 1000 | V63: 0 | W63: 0 | X63: 0 | Y63: 0 | Z63: FALSE | AA63: 0 | AB63: 1052 | AK63: 1000 | AL63: 0 | AM63: 1000
A64: =B6+53 -> 1053 | F64: 1 | I64: 21 | J64: Mini Track Loader Operation | T64: 1053 | U64: 1000 | V64: 0 | W64: 0 | X64: 0 | Y64: 0 | Z64: FALSE | AA64: 0 | AB64: 1053 | AE64: 1000 | AF64: 21 | AG64: 1000 | AK64: 1000 | AL64: 0 | AM64: 1000
A65: =B6+54 -> 1054 | F65: 1 | T65: 1054 | U65: 1000 | V65: 0 | W65: 0 | X65: 0 | Y65: 0 | Z65: FALSE | AA65: 0 | AB65: 1054 | AK65: 1000 | AL65: 0 | AM65: 1000
A66: =B6+55 -> 1055 | F66: 1 | I66: 22 | J66: Plant Problem Diagnosis | T66: 1055 | U66: 1000 | V66: 0 | W66: 0 | X66: 0 | Y66: 0 | Z66: FALSE | AA66: 0 | AB66: 1055 | AE66: =AD66+AG66 -> 1000 | AF66: 22 | AG66: 1000 | AK66: 1000 | AL66: 0 | AM66: 1000
A67: =B6+56 -> 1056 | F67: 1 | I67: 22 | J67: Plant Problem Diagnosis | T67: 1056 | U67: 1000 | V67: 0 | W67: 0 | X67: 0 | Y67: 0 | Z67: FALSE | AA67: 0 | AB67: 1056 | AE67: 1000 | AF67: 22 | AG67: 1000 | AK67: 1000 | AL67: 0 | AM67: 1000
A68: =B6+57 -> 1057 | F68: 1 | T68: 1057 | U68: 1000 | V68: 0 | W68: 0 | X68: 0 | Y68: 0 | Z68: FALSE | AA68: 0 | AB68: 1057 | AK68: 1000 | AL68: 0 | AM68: 1000
A69: =B6+58 -> 1058 | F69: 1 | I69: 23 | J69: Safety First | T69: 1058 | U69: 1000 | V69: 0 | W69: 0 | X69: 0 | Y69: 0 | Z69: FALSE | AA69: 0 | AB69: 1058 | AE69: 1000 | AF69: 23 | AG69: 1000 | AK69: 1000 | AL69: 0 | AM69: 1000
A70: =B6+59 -> 1059 | F70: 1 | I70: 23 | J70: Safety First | T70: 1059 | U70: 1000 | V70: 0 | W70: 0 | X70: 0 | Y70: 0 | Z70: FALSE | AA70: 0 | AB70: 1059 | AE70: 1000 | AF70: 23 | AG70: 1000 | AK70: 1000 | AL70: 0 | AM70: 1000
A71: =B6+60 -> 1060 | F71: 1 | T71: 1060 | U71: 1000 | V71: 0 | W71: 0 | X71: 0 | Y71: 0 | Z71: FALSE | AA71: 0 | AB71: 1060 | AK71: 1000 | AL71: 0 | AM71: 1000
A72: =B6+61 -> 1061 | F72: 1 | I72: 24 | J72: Sales Presentation | T72: 1061 | U72: 1000 | V72: 0 | W72: 0 | X72: 0 | Y72: 0 | Z72: FALSE | AA72: 0 | AB72: 1061 | AE72: 1000 | AF72: 24 | AG72: 1000 | AK72: 1000 | AL72: 0 | AM72: 1000
A73: =B6+62 -> 1062 | F73: 1 | T73: 1062 | U73: 1000 | V73: 0 | W73: 0 | X73: 0 | Y73: 0 | Z73: FALSE | AA73: 0 | AB73: 1062 | AK73: 1000 | AL73: 0 | AM73: 1000
A74: =B6+63 -> 1063 | F74: 1 | I74: 25 | J74: Small Engine Repair | T74: 1063 | U74: 1000 | V74: 0 | W74: 0 | X74: 0 | Y74: 0 | Z74: FALSE | AA74: 0 | AB74: 1063 | AE74: =AD74+AG74 -> 1000 | AF74: 25 | AG74: 1000 | AK74: 1000 | AL74: 0 | AM74: 1000
A75: =B6+64 -> 1064 | F75: 1 | T75: 1064 | U75: 1000 | V75: 0 | W75: 0 | X75: 0 | Y75: 0 | Z75: FALSE | AA75: 0 | AB75: 1064 | AK75: 1000 | AL75: 0 | AM75: 1000
A76: =B6+65 -> 1065 | F76: 1 | I76: 26 | J76: Robotics & Technology in Landscape Design/Maintenance | T76: 1065 | U76: 1000 | V76: 0 | W76: 0 | X76: 0 | Y76: 0 | Z76: FALSE | AA76: 0 | AB76: 1065 | AE76: =AD76+AG76 -> 1000 | AF76: 26 | AG76: 1000 | AK76: =$B$6+AJ76 -> 1000 | AL76: =AI76 -> 0 | AM76: =$B$6 -> 1000
A77: =B6+66 -> 1066 | F77: 1 | I77: 26 | J77: Robotics & Technology in Landscape Design/Maintenance | T77: =A77 -> 1066 | U77: =$B$6 -> 1000 | V77: =B77 -> 0 | W77: =C77 -> 0 | X77: =IF(E77="X",1,0) -> 0 | Y77: =D77 -> 0 | Z77: =IF(F77=2,"S",IF(F77=3,"M",IF(F77=4,"L",IF(F77=5,"XL",IF(F77=6,"XXL",IF(F77=7,"XXXL")))))) -> FALSE | AA77: =IF(H77="x",1,0) -> 0 | AB77: =A77&" "&B77&" "&C77 -> 1066 | AE77: =AD77+AG77 -> 1000 | AF77: 26 | AG77: 1000 | AK77: 1000 | AL77: 0 | AM77: 1000
A78: =B6+67 -> 1067 | F78: 1 | T78: 1067 | U78: 1000 | V78: 0 | W78: 0 | X78: 0 | Y78: 0 | Z78: FALSE | AA78: 0 | AB78: 1067 | AK78: 1000 | AL78: 0 | AM78: 1000
A79: =B6+68 -> 1068 | F79: 1 | I79: 27 | J79: Tractor Loader Backhoe Operation | T79: 1068 | U79: 1000 | V79: 0 | W79: 0 | X79: 0 | Y79: 0 | Z79: FALSE | AA79: 0 | AB79: 1068 | AE79: =AD79+AG79 -> 1000 | AF79: 27 | AG79: =$B$6 -> 1000 | AK79: 1000 | AL79: 0 | AM79: 1000
A80: =B6+69 -> 1069 | F80: 1 | T80: 1069 | U80: 1000 | V80: 0 | W80: 0 | X80: 0 | Y80: 0 | Z80: FALSE | AA80: 0 | AB80: 1069 | AK80: 1000 | AL80: 0 | AM80: 1000
A81: =B6+70 -> 1070 | F81: 1 | I81: 28 | J81: Truck & Trailer Operation | T81: 1070 | U81: 1000 | V81: 0 | W81: 0 | X81: 0 | Y81: 0 | Z81: FALSE | AA81: 0 | AB81: 1070 | AE81: =AD81+AG81 -> 1000 | AF81: 28 | AG81: =$B$6 -> 1000 | AK81: 1000 | AL81: 0 | AM81: 1000
A82: =B6+71 -> 1071 | F82: 1 | I82: 28 | J82: Truck & Trailer Operation | T82: 1071 | U82: 1000 | V82: 0 | W82: 0 | X82: 0 | Y82: 0 | Z82: FALSE | AA82: 0 | AB82: 1071 | AE82: 1000 | AF82: 28 | AG82: =$B$6 -> 1000 | AK82: 1000 | AL82: 0 | AM82: 1000
A83: =B6+72 -> 1072 | F83: 1 | T83: 1072 | U83: 1000 | V83: 0 | W83: 0 | X83: 0 | Y83: 0 | Z83: FALSE | AA83: 0 | AB83: 1072 | AK83: 1000 | AL83: 0 | AM83: 1000
A84: =B6+73 -> 1073 | F84: 1 | I84: 29 | J84: Turf & Weed Identification | T84: 1073 | U84: 1000 | V84: 0 | W84: 0 | X84: 0 | Y84: 0 | Z84: FALSE | AA84: 0 | AB84: 1073 | AE84: 1000 | AF84: 29 | AG84: =$B$6 -> 1000 | AK84: 1000 | AL84: 0 | AM84: 1000
A85: =B6+74 -> 1074 | F85: 1 | I85: 29 | J85: Turf & Weed Identification | T85: 1074 | U85: 1000 | V85: 0 | W85: 0 | X85: 0 | Y85: 0 | Z85: FALSE | AA85: 0 | AB85: 1074 | AE85: 1000 | AF85: 29 | AG85: =$B$6 -> 1000 | AK85: 1000 | AL85: 0 | AM85: 1000
A86: =B6+75 -> 1075 | F86: 1 | T86: 1075 | U86: 1000 | V86: 0 | W86: 0 | X86: 0 | Y86: 0 | Z86: FALSE | AA86: 0 | AB86: 1075 | AK86: 1000 | AL86: 0 | AM86: 1000
A87: =B6+76 -> 1076 | F87: 1 | I87: 30 | J87: Woody Ornamental Plant Identification | T87: 1076 | U87: 1000 | V87: 0 | W87: 0 | X87: 0 | Y87: 0 | Z87: FALSE | AA87: 0 | AB87: 1076 | AE87: 1000 | AF87: 30 | AG87: =$B$6 -> 1000 | AK87: 1000 | AL87: 0 | AM87: 1000
A88: =B6+77 -> 1077 | F88: 1 | I88: 30 | J88: Woody Ornamental Plant Identification | T88: 1077 | U88: 1000 | V88: 0 | W88: 0 | X88: 0 | Y88: 0 | Z88: FALSE | AA88: 0 | AB88: 1077 | AE88: 1000 | AF88: 30 | AG88: =$B$6 -> 1000 | AK88: 1000 | AL88: 0 | AM88: 1000
A89: =B6+78 -> 1078 | F89: 1 | T89: 1078 | U89: 1000 | V89: 0 | W89: 0 | X89: 0 | Y89: 0 | Z89: FALSE | AA89: 0 | AB89: 1078 | AK89: 1000 | AL89: 0 | AM89: 1000
A90: =B6+79 -> 1079 | F90: 1 | T90: 1079 | U90: 1000 | V90: 0 | W90: 0 | X90: 0 | Y90: 0 | Z90: FALSE | AA90: 0 | AB90: 1079 | AK90: 1000 | AL90: 0 | AM90: 1000
A91: =B6+80 -> 1080 | F91: 1 | T91: 1080 | U91: 1000 | V91: 0 | W91: 0 | X91: 0 | Y91: 0 | Z91: FALSE | AA91: 0 | AB91: 1080 | AK91: 1000 | AL91: 0 | AM91: 1000
A92: =B6+81 -> 1081 | F92: 1 | T92: 1081 | U92: 1000 | V92: 0 | W92: 0 | X92: 0 | Y92: 0 | Z92: FALSE | AA92: 0 | AB92: 1081 | AK92: 1000 | AL92: 0 | AM92: 1000
A93: =B6+82 -> 1082 | F93: 1 | T93: 1082 | U93: 1000 | V93: 0 | W93: 0 | X93: 0 | Y93: 0 | Z93: FALSE | AA93: 0 | AB93: 1082 | AK93: 1000 | AL93: 0 | AM93: 1000
A94: =B6+83 -> 1083 | F94: 1 | T94: 1083 | U94: 1000 | V94: 0 | W94: 0 | X94: 0 | Y94: 0 | Z94: FALSE | AA94: 0 | AB94: 1083 | AK94: 1000 | AL94: 0 | AM94: 1000
A95: =B6+84 -> 1084 | F95: 1 | T95: 1084 | U95: 1000 | V95: 0 | W95: 0 | X95: 0 | Y95: 0 | Z95: FALSE | AA95: 0 | AB95: 1084 | AK95: 1000 | AL95: 0 | AM95: 1000
A96: =B6+85 -> 1085 | F96: 1 | T96: 1085 | U96: 1000 | V96: 0 | W96: 0 | X96: 0 | Y96: 0 | Z96: FALSE | AA96: 0 | AB96: 1085 | AK96: 1000 | AL96: 0 | AM96: 1000
A97: =B6+86 -> 1086 | F97: 1 | T97: 1086 | U97: 1000 | V97: 0 | W97: 0 | X97: 0 | Y97: 0 | Z97: FALSE | AA97: 0 | AB97: 1086 | AK97: 1000 | AL97: 0 | AM97: 1000
A98: =B6+87 -> 1087 | F98: 1 | T98: 1087 | U98: 1000 | V98: 0 | W98: 0 | X98: 0 | Y98: 0 | Z98: FALSE | AA98: 0 | AB98: 1087 | AK98: 1000 | AL98: 0 | AM98: 1000
A99: =B6+88 -> 1088 | F99: 1 | T99: 1088 | U99: 1000 | V99: 0 | W99: 0 | X99: 0 | Y99: 0 | Z99: FALSE | AA99: 0 | AB99: 1088 | AK99: 1000 | AL99: 0 | AM99: 1000
A100: =B6+89 -> 1089 | F100: 1 | T100: 1089 | U100: 1000 | V100: 0 | W100: 0 | X100: 0 | Y100: 0 | Z100: FALSE | AA100: 0 | AB100: 1089 | AK100: 1000 | AL100: 0 | AM100: 1000
A101: =B6+90 -> 1090 | F101: 1 | T101: 1090 | U101: 1000 | V101: 0 | W101: 0 | X101: 0 | Y101: 0 | Z101: FALSE | AA101: 0 | AB101: 1090 | AK101: 1000 | AL101: 0 | AM101: 1000
A102: =B6+91 -> 1091 | F102: 1 | T102: 1091 | U102: 1000 | V102: 0 | W102: 0 | X102: 0 | Y102: 0 | Z102: FALSE | AA102: 0 | AB102: 1091 | AK102: 1000 | AL102: 0 | AM102: 1000
A103: =B6+92 -> 1092 | F103: 1 | T103: 1092 | U103: 1000 | V103: 0 | W103: 0 | X103: 0 | Y103: 0 | Z103: FALSE | AA103: 0 | AB103: 1092 | AK103: 1000 | AL103: 0 | AM103: 1000
A104: =B6+93 -> 1093 | F104: 1 | T104: 1093 | U104: 1000 | V104: 0 | W104: 0 | X104: 0 | Y104: 0 | Z104: FALSE | AA104: 0 | AB104: 1093 | AK104: 1000 | AL104: 0 | AM104: 1000
A105: =B6+94 -> 1094 | F105: 1 | T105: 1094 | U105: 1000 | V105: 0 | W105: 0 | X105: 0 | Y105: 0 | Z105: FALSE | AA105: 0 | AB105: 1094 | AK105: 1000 | AL105: 0 | AM105: 1000
A106: =B6+95 -> 1095 | F106: 1 | T106: 1095 | U106: 1000 | V106: 0 | W106: 0 | X106: 0 | Y106: 0 | Z106: FALSE | AA106: 0 | AB106: 1095 | AK106: 1000 | AL106: 0 | AM106: 1000
A107: =B6+96 -> 1096 | F107: 1 | T107: 1096 | U107: 1000 | V107: 0 | W107: 0 | X107: 0 | Y107: 0 | Z107: FALSE | AA107: 0 | AB107: 1096 | AK107: 1000 | AL107: 0 | AM107: 1000
A108: =B6+97 -> 1097 | T108: 1097 | U108: 1000 | V108: 0 | W108: 0 | X108: 0 | Y108: 0 | Z108: FALSE | AA108: 0 | AB108: 1097 | AK108: 1000 | AL108: 0 | AM108: 1000
A109: =B6+98 -> 1098 | F109: 1 | T109: 1098 | U109: 1000 | V109: 0 | W109: 0 | X109: 0 | Y109: 0 | Z109: FALSE | AA109: 0 | AB109: 1098 | AK109: 1000 | AL109: 0 | AM109: 1000
A110: =B6+99 -> 1099 | F110: 1 | T110: 1099 | U110: 1000 | V110: 0 | W110: 0 | X110: 0 | Y110: 0 | Z110: FALSE | AA110: 0 | AB110: 1099 | AK110: 1000 | AL110: 0 | AM110: 1000

Sheet Print Instructions (hidden)
A1: 1. Select desired section from the Name Range option box.
A21: 2. Select File/Print and make sure the settings are as follows:
A49: 3. Print!

Sheet Student Roster (hidden)
A2: 2018 National Collegiate Landscape Competition Student Roster
A3: =Registration!B5 -> 1000 Alamance Community College
A5: ID | B5: Name | C5: Fac Ind | D5: T Shirt | E5: Email Address
A6: =Registration!A12 -> 1001 | B6: =Registration!B12&" "&Registration!C12 ->  | C6: =IF(Registration!E12="X","Faculty","") ->  | D6: =IF(Registration!#REF!=2,"S",IF(Registration!#REF!=3,"M",IF(Registration!#REF!=4,"L",IF(Registration!#REF!=5,"XL",IF(Registration!#REF!=6,"XXL",IF(Registration!#REF!=7,"XXXL","")))))) ->  | E6: =IF(Registration!D11="","",Registration!D11) -> jstudent@school.edu
A7: =Registration!A13 -> 1002 | B7: =Registration!B13&" "&Registration!C13 ->  | C7: =IF(Registration!E13="X","Faculty","") ->  | D7: =IF(Registration!#REF!=2,"S",IF(Registration!#REF!=3,"M",IF(Registration!#REF!=4,"L",IF(Registration!#REF!=5,"XL",IF(Registration!#REF!=6,"XXL",IF(Registration!#REF!=7,"XXXL","")))))) ->  | E7: =IF(Registration!D13="","",Registration!D13) -> 
A8: =Registration!A14 -> 1003 | B8: =Registration!B14&" "&Registration!C14 ->  | C8: =IF(Registration!E14="X","Faculty","") ->  | D8: =IF(Registration!#REF!=2,"S",IF(Registration!#REF!=3,"M",IF(Registration!#REF!=4,"L",IF(Registration!#REF!=5,"XL",IF(Registration!#REF!=6,"XXL",IF(Registration!#REF!=7,"XXXL","")))))) ->  | E8: =IF(Registration!D14="","",Registration!D14) -> 
A9: =Registration!A15 -> 1004 | B9: =Registration!B15&" "&Registration!C15 ->  | C9: =IF(Registration!E15="X","Faculty","") ->  | D9: =IF(Registration!#REF!=2,"S",IF(Registration!#REF!=3,"M",IF(Registration!#REF!=4,"L",IF(Registration!#REF!=5,"XL",IF(Registration!#REF!=6,"XXL",IF(Registration!#REF!=7,"XXXL","")))))) ->  | E9: =IF(Registration!D15="","",Registration!D15) -> 
A10: =Registration!A16 -> 1005 | B10: =Registration!B16&" "&Registration!C16 ->  | C10: =IF(Registration!E16="X","Faculty","") ->  | D10: =IF(Registration!#REF!=2,"S",IF(Registration!#REF!=3,"M",IF(Registration!#REF!=4,"L",IF(Registration!#REF!=5,"XL",IF(Registration!#REF!=6,"XXL",IF(Registration!#REF!=7,"XXXL","")))))) ->  | E10: =IF(Registration!D16="","",Registration!D16) -> 
A11: =Registration!A17 -> 1006 | B11: =Registration!B17&" "&Registration!C17 ->  | C11: =IF(Registration!E17="X","Faculty","") ->  | D11: =IF(Registration!#REF!=2,"S",IF(Registration!#REF!=3,"M",IF(Registration!#REF!=4,"L",IF(Registration!#REF!=5,"XL",IF(Registration!#REF!=6,"XXL",IF(Registration!#REF!=7,"XXXL","")))))) ->  | E11: =IF(Registration!D17="","",Registration!D17) -> 
A12: =Registration!A18 -> 1007 | B12: =Registration!B18&" "&Registration!C18 ->  | C12: =IF(Registration!E18="X","Faculty","") ->  | D12: =IF(Registration!#REF!=2,"S",IF(Registration!#REF!=3,"M",IF(Registration!#REF!=4,"L",IF(Registration!#REF!=5,"XL",IF(Registration!#REF!=6,"XXL",IF(Registration!#REF!=7,"XXXL","")))))) ->  | E12: =IF(Registration!D18="","",Registration!D18) -> 
A13: =Registration!A19 -> 1008 | B13: =Registration!B19&" "&Registration!C19 ->  | C13: =IF(Registration!E19="X","Faculty","") ->  | D13: =IF(Registration!#REF!=2,"S",IF(Registration!#REF!=3,"M",IF(Registration!#REF!=4,"L",IF(Registration!#REF!=5,"XL",IF(Registration!#REF!=6,"XXL",IF(Registration!#REF!=7,"XXXL","")))))) ->  | E13: =IF(Registration!D19="","",Registration!D19) -> 
A14: =Registration!A20 -> 1009 | B14: =Registration!B20&" "&Registration!C20 ->  | C14: =IF(Registration!E20="X","Faculty","") ->  | D14: =IF(Registration!#REF!=2,"S",IF(Registration!#REF!=3,"M",IF(Registration!#REF!=4,"L",IF(Registration!#REF!=5,"XL",IF(Registration!#REF!=6,"XXL",IF(Registration!#REF!=7,"XXXL","")))))) ->  | E14: =IF(Registration!D20="","",Registration!D20) -> 
A15: =Registration!A21 -> 1010 | B15: =Registration!B21&" "&Registration!C21 ->  | C15: =IF(Registration!E21="X","Faculty","") ->  | D15: =IF(Registration!#REF!=2,"S",IF(Registration!#REF!=3,"M",IF(Registration!#REF!=4,"L",IF(Registration!#REF!=5,"XL",IF(Registration!#REF!=6,"XXL",IF(Registration!#REF!=7,"XXXL","")))))) ->  | E15: =IF(Registration!D21="","",Registration!D21) -> 
A16: =Registration!A22 -> 1011 | B16: =Registration!B22&" "&Registration!C22 ->  | C16: =IF(Registration!E22="X","Faculty","") ->  | D16: =IF(Registration!#REF!=2,"S",IF(Registration!#REF!=3,"M",IF(Registration!#REF!=4,"L",IF(Registration!#REF!=5,"XL",IF(Registration!#REF!=6,"XXL",IF(Registration!#REF!=7,"XXXL","")))))) ->  | E16: =IF(Registration!D22="","",Registration!D22) -> 
A17: =Registration!A23 -> 1012 | B17: =Registration!B23&" "&Registration!C23 ->  | C17: =IF(Registration!E23="X","Faculty","") ->  | D17: =IF(Registration!#REF!=2,"S",IF(Registration!#REF!=3,"M",IF(Registration!#REF!=4,"L",IF(Registration!#REF!=5,"XL",IF(Registration!#REF!=6,"XXL",IF(Registration!#REF!=7,"XXXL","")))))) ->  | E17: =IF(Registration!D23="","",Registration!D23) -> 
A18: =Registration!A24 -> 1013 | B18: =Registration!B24&" "&Registration!C24 ->  | C18: =IF(Registration!E24="X","Faculty","") ->  | D18: =IF(Registration!#REF!=2,"S",IF(Registration!#REF!=3,"M",IF(Registration!#REF!=4,"L",IF(Registration!#REF!=5,"XL",IF(Registration!#REF!=6,"XXL",IF(Registration!#REF!=7,"XXXL","")))))) ->  | E18: =IF(Registration!D24="","",Registration!D24) -> 
A19: =Registration!A25 -> 1014 | B19: =Registration!B25&" "&Registration!C25 ->  | C19: =IF(Registration!E25="X","Faculty","") ->  | D19: =IF(Registration!#REF!=2,"S",IF(Registration!#REF!=3,"M",IF(Registration!#REF!=4,"L",IF(Registration!#REF!=5,"XL",IF(Registration!#REF!=6,"XXL",IF(Registration!#REF!=7,"XXXL","")))))) ->  | E19: =IF(Registration!D25="","",Registration!D25) -> 
A20: =Registration!A26 -> 1015 | B20: =Registration!B26&" "&Registration!C26 ->  | C20: =IF(Registration!E26="X","Faculty","") ->  | D20: =IF(Registration!#REF!=2,"S",IF(Registration!#REF!=3,"M",IF(Registration!#REF!=4,"L",IF(Registration!#REF!=5,"XL",IF(Registration!#REF!=6,"XXL",IF(Registration!#REF!=7,"XXXL","")))))) ->  | E20: =IF(Registration!D26="","",Registration!D26) -> 
A21: =Registration!A27 -> 1016 | B21: =Registration!B27&" "&Registration!C27 ->  | C21: =IF(Registration!E27="X","Faculty","") ->  | D21: =IF(Registration!#REF!=2,"S",IF(Registration!#REF!=3,"M",IF(Registration!#REF!=4,"L",IF(Registration!#REF!=5,"XL",IF(Registration!#REF!=6,"XXL",IF(Registration!#REF!=7,"XXXL","")))))) ->  | E21: =IF(Registration!D27="","",Registration!D27) -> 
A22: =Registration!A28 -> 1017 | B22: =Registration!B28&" "&Registration!C28 ->  | C22: =IF(Registration!E28="X","Faculty","") ->  | D22: =IF(Registration!#REF!=2,"S",IF(Registration!#REF!=3,"M",IF(Registration!#REF!=4,"L",IF(Registration!#REF!=5,"XL",IF(Registration!#REF!=6,"XXL",IF(Registration!#REF!=7,"XXXL","")))))) ->  | E22: =IF(Registration!D28="","",Registration!D28) -> 
A23: =Registration!A29 -> 1018 | B23: =Registration!B29&" "&Registration!C29 ->  | C23: =IF(Registration!E29="X","Faculty","") ->  | D23: =IF(Registration!#REF!=2,"S",IF(Registration!#REF!=3,"M",IF(Registration!#REF!=4,"L",IF(Registration!#REF!=5,"XL",IF(Registration!#REF!=6,"XXL",IF(Registration!#REF!=7,"XXXL","")))))) ->  | E23: =IF(Registration!D29="","",Registration!D29) -> 
A24: =Registration!A30 -> 1019 | B24: =Registration!B30&" "&Registration!C30 ->  | C24: =IF(Registration!E30="X","Faculty","") ->  | D24: =IF(Registration!#REF!=2,"S",IF(Registration!#REF!=3,"M",IF(Registration!#REF!=4,"L",IF(Registration!#REF!=5,"XL",IF(Registration!#REF!=6,"XXL",IF(Registration!#REF!=7,"XXXL","")))))) ->  | E24: =IF(Registration!D30="","",Registration!D30) -> 
A25: =Registration!A31 -> 1020 | B25: =Registration!B31&" "&Registration!C31 ->  | C25: =IF(Registration!E31="X","Faculty","") ->  | D25: =IF(Registration!#REF!=2,"S",IF(Registration!#REF!=3,"M",IF(Registration!#REF!=4,"L",IF(Registration!#REF!=5,"XL",IF(Registration!#REF!=6,"XXL",IF(Registration!#REF!=7,"XXXL","")))))) ->  | E25: =IF(Registration!D31="","",Registration!D31) -> 
A26: =Registration!A32 -> 1021 | B26: =Registration!B32&" "&Registration!C32 ->  | C26: =IF(Registration!E32="X","Faculty","") ->  | D26: =IF(Registration!#REF!=2,"S",IF(Registration!#REF!=3,"M",IF(Registration!#REF!=4,"L",IF(Registration!#REF!=5,"XL",IF(Registration!#REF!=6,"XXL",IF(Registration!#REF!=7,"XXXL","")))))) ->  | E26: =IF(Registration!D32="","",Registration!D32) -> 
A27: =Registration!A33 -> 1022 | B27: =Registration!B33&" "&Registration!C33 ->  | C27: =IF(Registration!E33="X","Faculty","") ->  | D27: =IF(Registration!#REF!=2,"S",IF(Registration!#REF!=3,"M",IF(Registration!#REF!=4,"L",IF(Registration!#REF!=5,"XL",IF(Registration!#REF!=6,"XXL",IF(Registration!#REF!=7,"XXXL","")))))) ->  | E27: =IF(Registration!D33="","",Registration!D33) -> 
A28: =Registration!A34 -> 1023 | B28: =Registration!B34&" "&Registration!C34 ->  | C28: =IF(Registration!E34="X","Faculty","") ->  | D28: =IF(Registration!#REF!=2,"S",IF(Registration!#REF!=3,"M",IF(Registration!#REF!=4,"L",IF(Registration!#REF!=5,"XL",IF(Registration!#REF!=6,"XXL",IF(Registration!#REF!=7,"XXXL","")))))) ->  | E28: =IF(Registration!D34="","",Registration!D34) -> 
A29: =Registration!A35 -> 1024 | B29: =Registration!B35&" "&Registration!C35 ->  | C29: =IF(Registration!E35="X","Faculty","") ->  | D29: =IF(Registration!#REF!=2,"S",IF(Registration!#REF!=3,"M",IF(Registration!#REF!=4,"L",IF(Registration!#REF!=5,"XL",IF(Registration!#REF!=6,"XXL",IF(Registration!#REF!=7,"XXXL","")))))) ->  | E29: =IF(Registration!D35="","",Registration!D35) -> 
A30: =Registration!A36 -> 1025 | B30: =Registration!B36&" "&Registration!C36 ->  | C30: =IF(Registration!E36="X","Faculty","") ->  | D30: =IF(Registration!#REF!=2,"S",IF(Registration!#REF!=3,"M",IF(Registration!#REF!=4,"L",IF(Registration!#REF!=5,"XL",IF(Registration!#REF!=6,"XXL",IF(Registration!#REF!=7,"XXXL","")))))) ->  | E30: =IF(Registration!D36="","",Registration!D36) -> 
A31: =Registration!A37 -> 1026 | B31: =Registration!B37&" "&Registration!C37 ->  | C31: =IF(Registration!E37="X","Faculty","") ->  | D31: =IF(Registration!#REF!=2,"S",IF(Registration!#REF!=3,"M",IF(Registration!#REF!=4,"L",IF(Registration!#REF!=5,"XL",IF(Registration!#REF!=6,"XXL",IF(Registration!#REF!=7,"XXXL","")))))) ->  | E31: =IF(Registration!D37="","",Registration!D37) -> 
A32: =Registration!A38 -> 1027 | B32: =Registration!B38&" "&Registration!C38 ->  | C32: =IF(Registration!E38="X","Faculty","") ->  | D32: =IF(Registration!#REF!=2,"S",IF(Registration!#REF!=3,"M",IF(Registration!#REF!=4,"L",IF(Registration!#REF!=5,"XL",IF(Registration!#REF!=6,"XXL",IF(Registration!#REF!=7,"XXXL","")))))) ->  | E32: =IF(Registration!D38="","",Registration!D38) -> 
A33: =Registration!A39 -> 1028 | B33: =Registration!B39&" "&Registration!C39 ->  | C33: =IF(Registration!E39="X","Faculty","") ->  | D33: =IF(Registration!#REF!=2,"S",IF(Registration!#REF!=3,"M",IF(Registration!#REF!=4,"L",IF(Registration!#REF!=5,"XL",IF(Registration!#REF!=6,"XXL",IF(Registration!#REF!=7,"XXXL","")))))) ->  | E33: =IF(Registration!D39="","",Registration!D39) -> 
A34: =Registration!A40 -> 1029 | B34: =Registration!B40&" "&Registration!C40 ->  | C34: =IF(Registration!E40="X","Faculty","") ->  | D34: =IF(Registration!#REF!=2,"S",IF(Registration!#REF!=3,"M",IF(Registration!#REF!=4,"L",IF(Registration!#REF!=5,"XL",IF(Registration!#REF!=6,"XXL",IF(Registration!#REF!=7,"XXXL","")))))) ->  | E34: =IF(Registration!D40="","",Registration!D40) -> 
A35: =Registration!A41 -> 1030 | B35: =Registration!B41&" "&Registration!C41 ->  | C35: =IF(Registration!E41="X","Faculty","") ->  | D35: =IF(Registration!#REF!=2,"S",IF(Registration!#REF!=3,"M",IF(Registration!#REF!=4,"L",IF(Registration!#REF!=5,"XL",IF(Registration!#REF!=6,"XXL",IF(Registration!#REF!=7,"XXXL","")))))) ->  | E35: =IF(Registration!D41="","",Registration!D41) -> 
A36: =Registration!A42 -> 1031 | B36: =Registration!B42&" "&Registration!C42 ->  | C36: =IF(Registration!E42="X","Faculty","") ->  | D36: =IF(Registration!#REF!=2,"S",IF(Registration!#REF!=3,"M",IF(Registration!#REF!=4,"L",IF(Registration!#REF!=5,"XL",IF(Registration!#REF!=6,"XXL",IF(Registration!#REF!=7,"XXXL","")))))) ->  | E36: =IF(Registration!D42="","",Registration!D42) -> 
A37: =Registration!A43 -> 1032 | B37: =Registration!B43&" "&Registration!C43 ->  | C37: =IF(Registration!E43="X","Faculty","") ->  | D37: =IF(Registration!#REF!=2,"S",IF(Registration!#REF!=3,"M",IF(Registration!#REF!=4,"L",IF(Registration!#REF!=5,"XL",IF(Registration!#REF!=6,"XXL",IF(Registration!#REF!=7,"XXXL","")))))) ->  | E37: =IF(Registration!D43="","",Registration!D43) -> 
A38: =Registration!A44 -> 1033 | B38: =Registration!B44&" "&Registration!C44 ->  | C38: =IF(Registration!E44="X","Faculty","") ->  | D38: =IF(Registration!#REF!=2,"S",IF(Registration!#REF!=3,"M",IF(Registration!#REF!=4,"L",IF(Registration!#REF!=5,"XL",IF(Registration!#REF!=6,"XXL",IF(Registration!#REF!=7,"XXXL","")))))) ->  | E38: =IF(Registration!D44="","",Registration!D44) -> 
A39: =Registration!A45 -> 1034 | B39: =Registration!B45&" "&Registration!C45 ->  | C39: =IF(Registration!E45="X","Faculty","") ->  | D39: =IF(Registration!#REF!=2,"S",IF(Registration!#REF!=3,"M",IF(Registration!#REF!=4,"L",IF(Registration!#REF!=5,"XL",IF(Registration!#REF!=6,"XXL",IF(Registration!#REF!=7,"XXXL","")))))) ->  | E39: =IF(Registration!D45="","",Registration!D45) -> 
A40: =Registration!A46 -> 1035 | B40: =Registration!B46&" "&Registration!C46 ->  | C40: =IF(Registration!E46="X","Faculty","") ->  | D40: =IF(Registration!#REF!=2,"S",IF(Registration!#REF!=3,"M",IF(Registration!#REF!=4,"L",IF(Registration!#REF!=5,"XL",IF(Registration!#REF!=6,"XXL",IF(Registration!#REF!=7,"XXXL","")))))) ->  | E40: =IF(Registration!D46="","",Registration!D46) -> 
A41: =Registration!A47 -> 1036 | B41: =Registration!B47&" "&Registration!C47 ->  | C41: =IF(Registration!E47="X","Faculty","") ->  | D41: =IF(Registration!#REF!=2,"S",IF(Registration!#REF!=3,"M",IF(Registration!#REF!=4,"L",IF(Registration!#REF!=5,"XL",IF(Registration!#REF!=6,"XXL",IF(Registration!#REF!=7,"XXXL","")))))) ->  | E41: =IF(Registration!D47="","",Registration!D47) -> 
A42: =Registration!A48 -> 1037 | B42: =Registration!B48&" "&Registration!C48 ->  | C42: =IF(Registration!E48="X","Faculty","") ->  | D42: =IF(Registration!#REF!=2,"S",IF(Registration!#REF!=3,"M",IF(Registration!#REF!=4,"L",IF(Registration!#REF!=5,"XL",IF(Registration!#REF!=6,"XXL",IF(Registration!#REF!=7,"XXXL","")))))) ->  | E42: =IF(Registration!D48="","",Registration!D48) -> 
A43: =Registration!A49 -> 1038 | B43: =Registration!B49&" "&Registration!C49 ->  | C43: =IF(Registration!E49="X","Faculty","") ->  | D43: =IF(Registration!#REF!=2,"S",IF(Registration!#REF!=3,"M",IF(Registration!#REF!=4,"L",IF(Registration!#REF!=5,"XL",IF(Registration!#REF!=6,"XXL",IF(Registration!#REF!=7,"XXXL","")))))) ->  | E43: =IF(Registration!D49="","",Registration!D49) -> 
A44: =Registration!A50 -> 1039 | B44: =Registration!B50&" "&Registration!C50 ->  | C44: =IF(Registration!E50="X","Faculty","") ->  | D44: =IF(Registration!#REF!=2,"S",IF(Registration!#REF!=3,"M",IF(Registration!#REF!=4,"L",IF(Registration!#REF!=5,"XL",IF(Registration!#REF!=6,"XXL",IF(Registration!#REF!=7,"XXXL","")))))) ->  | E44: =IF(Registration!D50="","",Registration!D50) -> 
A45: =Registration!A51 -> 1040 | B45: =Registration!B51&" "&Registration!C51 ->  | C45: =IF(Registration!E51="X","Faculty","") ->  | D45: =IF(Registration!#REF!=2,"S",IF(Registration!#REF!=3,"M",IF(Registration!#REF!=4,"L",IF(Registration!#REF!=5,"XL",IF(Registration!#REF!=6,"XXL",IF(Registration!#REF!=7,"XXXL","")))))) ->  | E45: =IF(Registration!D51="","",Registration!D51) -> 
A46: =Registration!A52 -> 1041 | B46: =Registration!B52&" "&Registration!C52 ->  | C46: =IF(Registration!E52="X","Faculty","") ->  | D46: =IF(Registration!#REF!=2,"S",IF(Registration!#REF!=3,"M",IF(Registration!#REF!=4,"L",IF(Registration!#REF!=5,"XL",IF(Registration!#REF!=6,"XXL",IF(Registration!#REF!=7,"XXXL","")))))) ->  | E46: =IF(Registration!D52="","",Registration!D52) -> 
A47: =Registration!A53 -> 1042 | B47: =Registration!B53&" "&Registration!C53 ->  | C47: =IF(Registration!E53="X","Faculty","") ->  | D47: =IF(Registration!#REF!=2,"S",IF(Registration!#REF!=3,"M",IF(Registration!#REF!=4,"L",IF(Registration!#REF!=5,"XL",IF(Registration!#REF!=6,"XXL",IF(Registration!#REF!=7,"XXXL","")))))) ->  | E47: =IF(Registration!D53="","",Registration!D53) -> 
A48: =Registration!A54 -> 1043 | B48: =Registration!B54&" "&Registration!C54 ->  | C48: =IF(Registration!E54="X","Faculty","") ->  | D48: =IF(Registration!#REF!=2,"S",IF(Registration!#REF!=3,"M",IF(Registration!#REF!=4,"L",IF(Registration!#REF!=5,"XL",IF(Registration!#REF!=6,"XXL",IF(Registration!#REF!=7,"XXXL","")))))) ->  | E48: =IF(Registration!D54="","",Registration!D54) -> 
A49: =Registration!A55 -> 1044 | B49: =Registration!B55&" "&Registration!C55 ->  | C49: =IF(Registration!E55="X","Faculty","") ->  | D49: =IF(Registration!#REF!=2,"S",IF(Registration!#REF!=3,"M",IF(Registration!#REF!=4,"L",IF(Registration!#REF!=5,"XL",IF(Registration!#REF!=6,"XXL",IF(Registration!#REF!=7,"XXXL","")))))) ->  | E49: =IF(Registration!D55="","",Registration!D55) -> 
A50: =Registration!A56 -> 1045 | B50: =Registration!B56&" "&Registration!C56 ->  | C50: =IF(Registration!E56="X","Faculty","") ->  | D50: =IF(Registration!#REF!=2,"S",IF(Registration!#REF!=3,"M",IF(Registration!#REF!=4,"L",IF(Registration!#REF!=5,"XL",IF(Registration!#REF!=6,"XXL",IF(Registration!#REF!=7,"XXXL","")))))) ->  | E50: =IF(Registration!D56="","",Registration!D56) -> 
A51: =Registration!A57 -> 1046 | B51: =Registration!B57&" "&Registration!C57 ->  | C51: =IF(Registration!E57="X","Faculty","") ->  | D51: =IF(Registration!#REF!=2,"S",IF(Registration!#REF!=3,"M",IF(Registration!#REF!=4,"L",IF(Registration!#REF!=5,"XL",IF(Registration!#REF!=6,"XXL",IF(Registration!#REF!=7,"XXXL","")))))) ->  | E51: =IF(Registration!D57="","",Registration!D57) -> 
A52: =Registration!A58 -> 1047 | B52: =Registration!B58&" "&Registration!C58 ->  | C52: =IF(Registration!E58="X","Faculty","") ->  | D52: =IF(Registration!#REF!=2,"S",IF(Registration!#REF!=3,"M",IF(Registration!#REF!=4,"L",IF(Registration!#REF!=5,"XL",IF(Registration!#REF!=6,"XXL",IF(Registration!#REF!=7,"XXXL","")))))) ->  | E52: =IF(Registration!D58="","",Registration!D58) -> 
A53: =Registration!A59 -> 1048 | B53: =Registration!B59&" "&Registration!C59 ->  | C53: =IF(Registration!E59="X","Faculty","") ->  | D53: =IF(Registration!#REF!=2,"S",IF(Registration!#REF!=3,"M",IF(Registration!#REF!=4,"L",IF(Registration!#REF!=5,"XL",IF(Registration!#REF!=6,"XXL",IF(Registration!#REF!=7,"XXXL","")))))) ->  | E53: =IF(Registration!D59="","",Registration!D59) -> 
A54: =Registration!A60 -> 1049 | B54: =Registration!B60&" "&Registration!C60 ->  | C54: =IF(Registration!E60="X","Faculty","") ->  | D54: =IF(Registration!#REF!=2,"S",IF(Registration!#REF!=3,"M",IF(Registration!#REF!=4,"L",IF(Registration!#REF!=5,"XL",IF(Registration!#REF!=6,"XXL",IF(Registration!#REF!=7,"XXXL","")))))) ->  | E54: =IF(Registration!D60="","",Registration!D60) -> 
A55: =Registration!A61 -> 1050 | B55: =Registration!B61&" "&Registration!C61 ->  | C55: =IF(Registration!E61="X","Faculty","") ->  | D55: =IF(Registration!#REF!=2,"S",IF(Registration!#REF!=3,"M",IF(Registration!#REF!=4,"L",IF(Registration!#REF!=5,"XL",IF(Registration!#REF!=6,"XXL",IF(Registration!#REF!=7,"XXXL","")))))) ->  | E55: =IF(Registration!D61="","",Registration!D61) -> 
A56: =Registration!A62 -> 1051 | B56: =Registration!B62&" "&Registration!C62 ->  | C56: =IF(Registration!E62="X","Faculty","") ->  | D56: =IF(Registration!#REF!=2,"S",IF(Registration!#REF!=3,"M",IF(Registration!#REF!=4,"L",IF(Registration!#REF!=5,"XL",IF(Registration!#REF!=6,"XXL",IF(Registration!#REF!=7,"XXXL","")))))) ->  | E56: =IF(Registration!D62="","",Registration!D62) -> 
A57: =Registration!A63 -> 1052 | B57: =Registration!B63&" "&Registration!C63 ->  | C57: =IF(Registration!E63="X","Faculty","") ->  | D57: =IF(Registration!#REF!=2,"S",IF(Registration!#REF!=3,"M",IF(Registration!#REF!=4,"L",IF(Registration!#REF!=5,"XL",IF(Registration!#REF!=6,"XXL",IF(Registration!#REF!=7,"XXXL","")))))) ->  | E57: =IF(Registration!D63="","",Registration!D63) -> 
A58: =Registration!A64 -> 1053 | B58: =Registration!B64&" "&Registration!C64 ->  | C58: =IF(Registration!E64="X","Faculty","") ->  | D58: =IF(Registration!#REF!=2,"S",IF(Registration!#REF!=3,"M",IF(Registration!#REF!=4,"L",IF(Registration!#REF!=5,"XL",IF(Registration!#REF!=6,"XXL",IF(Registration!#REF!=7,"XXXL","")))))) ->  | E58: =IF(Registration!D64="","",Registration!D64) -> 
A59: =Registration!A65 -> 1054 | B59: =Registration!B65&" "&Registration!C65 ->  | C59: =IF(Registration!E65="X","Faculty","") ->  | D59: =IF(Registration!#REF!=2,"S",IF(Registration!#REF!=3,"M",IF(Registration!#REF!=4,"L",IF(Registration!#REF!=5,"XL",IF(Registration!#REF!=6,"XXL",IF(Registration!#REF!=7,"XXXL","")))))) ->  | E59: =IF(Registration!D65="","",Registration!D65) -> 
A60: =Registration!A66 -> 1055 | B60: =Registration!B66&" "&Registration!C66 ->  | C60: =IF(Registration!E66="X","Faculty","") ->  | D60: =IF(Registration!#REF!=2,"S",IF(Registration!#REF!=3,"M",IF(Registration!#REF!=4,"L",IF(Registration!#REF!=5,"XL",IF(Registration!#REF!=6,"XXL",IF(Registration!#REF!=7,"XXXL","")))))) ->  | E60: =IF(Registration!D66="","",Registration!D66) -> 
A61: =Registration!A67 -> 1056 | B61: =Registration!B67&" "&Registration!C67 ->  | C61: =IF(Registration!E67="X","Faculty","") ->  | D61: =IF(Registration!#REF!=2,"S",IF(Registration!#REF!=3,"M",IF(Registration!#REF!=4,"L",IF(Registration!#REF!=5,"XL",IF(Registration!#REF!=6,"XXL",IF(Registration!#REF!=7,"XXXL","")))))) ->  | E61: =IF(Registration!D67="","",Registration!D67) -> 
A62: =Registration!A68 -> 1057 | B62: =Registration!B68&" "&Registration!C68 ->  | C62: =IF(Registration!E68="X","Faculty","") ->  | D62: =IF(Registration!#REF!=2,"S",IF(Registration!#REF!=3,"M",IF(Registration!#REF!=4,"L",IF(Registration!#REF!=5,"XL",IF(Registration!#REF!=6,"XXL",IF(Registration!#REF!=7,"XXXL","")))))) ->  | E62: =IF(Registration!D68="","",Registration!D68) -> 
A63: =Registration!A69 -> 1058 | B63: =Registration!B69&" "&Registration!C69 ->  | C63: =IF(Registration!E69="X","Faculty","") ->  | D63: =IF(Registration!#REF!=2,"S",IF(Registration!#REF!=3,"M",IF(Registration!#REF!=4,"L",IF(Registration!#REF!=5,"XL",IF(Registration!#REF!=6,"XXL",IF(Registration!#REF!=7,"XXXL","")))))) ->  | E63: =IF(Registration!D69="","",Registration!D69) -> 
A64: =Registration!A70 -> 1059 | B64: =Registration!B70&" "&Registration!C70 ->  | C64: =IF(Registration!E70="X","Faculty","") ->  | D64: =IF(Registration!#REF!=2,"S",IF(Registration!#REF!=3,"M",IF(Registration!#REF!=4,"L",IF(Registration!#REF!=5,"XL",IF(Registration!#REF!=6,"XXL",IF(Registration!#REF!=7,"XXXL","")))))) ->  | E64: =IF(Registration!D70="","",Registration!D70) -> 
A65: =Registration!A71 -> 1060 | B65: =Registration!B71&" "&Registration!C71 ->  | C65: =IF(Registration!E71="X","Faculty","") ->  | D65: =IF(Registration!#REF!=2,"S",IF(Registration!#REF!=3,"M",IF(Registration!#REF!=4,"L",IF(Registration!#REF!=5,"XL",IF(Registration!#REF!=6,"XXL",IF(Registration!#REF!=7,"XXXL","")))))) ->  | E65: =IF(Registration!D71="","",Registration!D71) -> 
A66: =Registration!A72 -> 1061 | B66: =Registration!B72&" "&Registration!C72 ->  | C66: =IF(Registration!E72="X","Faculty","") ->  | D66: =IF(Registration!#REF!=2,"S",IF(Registration!#REF!=3,"M",IF(Registration!#REF!=4,"L",IF(Registration!#REF!=5,"XL",IF(Registration!#REF!=6,"XXL",IF(Registration!#REF!=7,"XXXL","")))))) ->  | E66: =IF(Registration!D72="","",Registration!D72) -> 
A67: =Registration!A73 -> 1062 | B67: =Registration!B73&" "&Registration!C73 ->  | C67: =IF(Registration!E73="X","Faculty","") ->  | D67: =IF(Registration!#REF!=2,"S",IF(Registration!#REF!=3,"M",IF(Registration!#REF!=4,"L",IF(Registration!#REF!=5,"XL",IF(Registration!#REF!=6,"XXL",IF(Registration!#REF!=7,"XXXL","")))))) ->  | E67: =IF(Registration!D73="","",Registration!D73) -> 
A68: =Registration!A74 -> 1063 | B68: =Registration!B74&" "&Registration!C74 ->  | C68: =IF(Registration!E74="X","Faculty","") ->  | D68: =IF(Registration!#REF!=2,"S",IF(Registration!#REF!=3,"M",IF(Registration!#REF!=4,"L",IF(Registration!#REF!=5,"XL",IF(Registration!#REF!=6,"XXL",IF(Registration!#REF!=7,"XXXL","")))))) ->  | E68: =IF(Registration!D74="","",Registration!D74) -> 
A69: =Registration!A75 -> 1064 | B69: =Registration!B75&" "&Registration!C75 ->  | C69: =IF(Registration!E75="X","Faculty","") ->  | D69: =IF(Registration!#REF!=2,"S",IF(Registration!#REF!=3,"M",IF(Registration!#REF!=4,"L",IF(Registration!#REF!=5,"XL",IF(Registration!#REF!=6,"XXL",IF(Registration!#REF!=7,"XXXL","")))))) ->  | E69: =IF(Registration!D75="","",Registration!D75) -> 
A70: =Registration!A76 -> 1065 | B70: =Registration!B76&" "&Registration!C76 ->  | C70: =IF(Registration!E76="X","Faculty","") ->  | D70: =IF(Registration!#REF!=2,"S",IF(Registration!#REF!=3,"M",IF(Registration!#REF!=4,"L",IF(Registration!#REF!=5,"XL",IF(Registration!#REF!=6,"XXL",IF(Registration!#REF!=7,"XXXL","")))))) ->  | E70: =IF(Registration!D76="","",Registration!D76) -> 
A71: =Registration!A77 -> 1066 | B71: =Registration!B77&" "&Registration!C77 ->  | C71: =IF(Registration!E77="X","Faculty","") ->  | D71: =IF(Registration!#REF!=2,"S",IF(Registration!#REF!=3,"M",IF(Registration!#REF!=4,"L",IF(Registration!#REF!=5,"XL",IF(Registration!#REF!=6,"XXL",IF(Registration!#REF!=7,"XXXL","")))))) ->  | E71: =IF(Registration!D77="","",Registration!D77) -> 
A72: =Registration!A78 -> 1067 | B72: =Registration!B78&" "&Registration!C78 ->  | C72: =IF(Registration!E78="X","Faculty","") ->  | D72: =IF(Registration!#REF!=2,"S",IF(Registration!#REF!=3,"M",IF(Registration!#REF!=4,"L",IF(Registration!#REF!=5,"XL",IF(Registration!#REF!=6,"XXL",IF(Registration!#REF!=7,"XXXL","")))))) ->  | E72: =IF(Registration!D78="","",Registration!D78) -> 
A73: =Registration!A79 -> 1068 | B73: =Registration!B79&" "&Registration!C79 ->  | C73: =IF(Registration!E79="X","Faculty","") ->  | D73: =IF(Registration!#REF!=2,"S",IF(Registration!#REF!=3,"M",IF(Registration!#REF!=4,"L",IF(Registration!#REF!=5,"XL",IF(Registration!#REF!=6,"XXL",IF(Registration!#REF!=7,"XXXL","")))))) ->  | E73: =IF(Registration!D79="","",Registration!D79) -> 
A74: =Registration!A80 -> 1069 | B74: =Registration!B80&" "&Registration!C80 ->  | C74: =IF(Registration!E80="X","Faculty","") ->  | D74: =IF(Registration!#REF!=2,"S",IF(Registration!#REF!=3,"M",IF(Registration!#REF!=4,"L",IF(Registration!#REF!=5,"XL",IF(Registration!#REF!=6,"XXL",IF(Registration!#REF!=7,"XXXL","")))))) ->  | E74: =IF(Registration!D80="","",Registration!D80) -> 
A75: =Registration!A81 -> 1070 | B75: =Registration!B81&" "&Registration!C81 ->  | C75: =IF(Registration!E81="X","Faculty","") ->  | D75: =IF(Registration!#REF!=2,"S",IF(Registration!#REF!=3,"M",IF(Registration!#REF!=4,"L",IF(Registration!#REF!=5,"XL",IF(Registration!#REF!=6,"XXL",IF(Registration!#REF!=7,"XXXL","")))))) ->  | E75: =IF(Registration!D81="","",Registration!D81) -> 
A76: =Registration!A82 -> 1071 | B76: =Registration!B82&" "&Registration!C82 ->  | C76: =IF(Registration!E82="X","Faculty","") ->  | D76: =IF(Registration!#REF!=2,"S",IF(Registration!#REF!=3,"M",IF(Registration!#REF!=4,"L",IF(Registration!#REF!=5,"XL",IF(Registration!#REF!=6,"XXL",IF(Registration!#REF!=7,"XXXL","")))))) ->  | E76: =IF(Registration!D82="","",Registration!D82) -> 
A77: =Registration!A83 -> 1072 | B77: =Registration!B83&" "&Registration!C83 ->  | C77: =IF(Registration!E83="X","Faculty","") ->  | D77: =IF(Registration!#REF!=2,"S",IF(Registration!#REF!=3,"M",IF(Registration!#REF!=4,"L",IF(Registration!#REF!=5,"XL",IF(Registration!#REF!=6,"XXL",IF(Registration!#REF!=7,"XXXL","")))))) ->  | E77: =IF(Registration!D83="","",Registration!D83) -> 
A78: =Registration!A84 -> 1073 | B78: =Registration!B84&" "&Registration!C84 ->  | C78: =IF(Registration!E84="X","Faculty","") ->  | D78: =IF(Registration!#REF!=2,"S",IF(Registration!#REF!=3,"M",IF(Registration!#REF!=4,"L",IF(Registration!#REF!=5,"XL",IF(Registration!#REF!=6,"XXL",IF(Registration!#REF!=7,"XXXL","")))))) ->  | E78: =IF(Registration!D84="","",Registration!D84) -> 
A79: =Registration!A85 -> 1074 | B79: =Registration!B85&" "&Registration!C85 ->  | C79: =IF(Registration!E85="X","Faculty","") ->  | D79: =IF(Registration!#REF!=2,"S",IF(Registration!#REF!=3,"M",IF(Registration!#REF!=4,"L",IF(Registration!#REF!=5,"XL",IF(Registration!#REF!=6,"XXL",IF(Registration!#REF!=7,"XXXL","")))))) ->  | E79: =IF(Registration!D85="","",Registration!D85) -> 
A80: =Registration!A86 -> 1075 | B80: =Registration!B86&" "&Registration!C86 ->  | C80: =IF(Registration!E86="X","Faculty","") ->  | D80: =IF(Registration!#REF!=2,"S",IF(Registration!#REF!=3,"M",IF(Registration!#REF!=4,"L",IF(Registration!#REF!=5,"XL",IF(Registration!#REF!=6,"XXL",IF(Registration!#REF!=7,"XXXL","")))))) ->  | E80: =IF(Registration!D86="","",Registration!D86) -> 
A81: =Registration!A87 -> 1076 | B81: =Registration!B87&" "&Registration!C87 ->  | C81: =IF(Registration!E87="X","Faculty","") ->  | D81: =IF(Registration!#REF!=2,"S",IF(Registration!#REF!=3,"M",IF(Registration!#REF!=4,"L",IF(Registration!#REF!=5,"XL",IF(Registration!#REF!=6,"XXL",IF(Registration!#REF!=7,"XXXL","")))))) ->  | E81: =IF(Registration!D87="","",Registration!D87) -> 
A82: =Registration!A88 -> 1077 | B82: =Registration!B88&" "&Registration!C88 ->  | C82: =IF(Registration!E88="X","Faculty","") ->  | D82: =IF(Registration!#REF!=2,"S",IF(Registration!#REF!=3,"M",IF(Registration!#REF!=4,"L",IF(Registration!#REF!=5,"XL",IF(Registration!#REF!=6,"XXL",IF(Registration!#REF!=7,"XXXL","")))))) ->  | E82: =IF(Registration!D88="","",Registration!D88) -> 
A83: =Registration!A89 -> 1078 | B83: =Registration!B89&" "&Registration!C89 ->  | C83: =IF(Registration!E89="X","Faculty","") ->  | D83: =IF(Registration!#REF!=2,"S",IF(Registration!#REF!=3,"M",IF(Registration!#REF!=4,"L",IF(Registration!#REF!=5,"XL",IF(Registration!#REF!=6,"XXL",IF(Registration!#REF!=7,"XXXL","")))))) ->  | E83: =IF(Registration!D89="","",Registration!D89) -> 
A84: =Registration!A90 -> 1079 | B84: =Registration!B90&" "&Registration!C90 ->  | C84: =IF(Registration!E90="X","Faculty","") ->  | D84: =IF(Registration!#REF!=2,"S",IF(Registration!#REF!=3,"M",IF(Registration!#REF!=4,"L",IF(Registration!#REF!=5,"XL",IF(Registration!#REF!=6,"XXL",IF(Registration!#REF!=7,"XXXL","")))))) ->  | E84: =IF(Registration!D90="","",Registration!D90) -> 
A85: =Registration!A91 -> 1080 | B85: =Registration!B91&" "&Registration!C91 ->  | C85: =IF(Registration!E91="X","Faculty","") ->  | D85: =IF(Registration!#REF!=2,"S",IF(Registration!#REF!=3,"M",IF(Registration!#REF!=4,"L",IF(Registration!#REF!=5,"XL",IF(Registration!#REF!=6,"XXL",IF(Registration!#REF!=7,"XXXL","")))))) ->  | E85: =IF(Registration!D91="","",Registration!D91) -> 
A86: =Registration!A92 -> 1081 | B86: =Registration!B92&" "&Registration!C92 ->  | C86: =IF(Registration!E92="X","Faculty","") ->  | D86: =IF(Registration!#REF!=2,"S",IF(Registration!#REF!=3,"M",IF(Registration!#REF!=4,"L",IF(Registration!#REF!=5,"XL",IF(Registration!#REF!=6,"XXL",IF(Registration!#REF!=7,"XXXL","")))))) ->  | E86: =IF(Registration!D92="","",Registration!D92) -> 
A87: =Registration!A93 -> 1082 | B87: =Registration!B93&" "&Registration!C93 ->  | C87: =IF(Registration!E93="X","Faculty","") ->  | D87: =IF(Registration!#REF!=2,"S",IF(Registration!#REF!=3,"M",IF(Registration!#REF!=4,"L",IF(Registration!#REF!=5,"XL",IF(Registration!#REF!=6,"XXL",IF(Registration!#REF!=7,"XXXL","")))))) ->  | E87: =IF(Registration!D93="","",Registration!D93) -> 
A88: =Registration!A94 -> 1083 | B88: =Registration!B94&" "&Registration!C94 ->  | C88: =IF(Registration!E94="X","Faculty","") ->  | D88: =IF(Registration!#REF!=2,"S",IF(Registration!#REF!=3,"M",IF(Registration!#REF!=4,"L",IF(Registration!#REF!=5,"XL",IF(Registration!#REF!=6,"XXL",IF(Registration!#REF!=7,"XXXL","")))))) ->  | E88: =IF(Registration!D94="","",Registration!D94) -> 
A89: =Registration!A95 -> 1084 | B89: =Registration!B95&" "&Registration!C95 ->  | C89: =IF(Registration!E95="X","Faculty","") ->  | D89: =IF(Registration!#REF!=2,"S",IF(Registration!#REF!=3,"M",IF(Registration!#REF!=4,"L",IF(Registration!#REF!=5,"XL",IF(Registration!#REF!=6,"XXL",IF(Registration!#REF!=7,"XXXL","")))))) ->  | E89: =IF(Registration!D95="","",Registration!D95) -> 
A90: =Registration!A96 -> 1085 | B90: =Registration!B96&" "&Registration!C96 ->  | C90: =IF(Registration!E96="X","Faculty","") ->  | D90: =IF(Registration!#REF!=2,"S",IF(Registration!#REF!=3,"M",IF(Registration!#REF!=4,"L",IF(Registration!#REF!=5,"XL",IF(Registration!#REF!=6,"XXL",IF(Registration!#REF!=7,"XXXL","")))))) ->  | E90: =IF(Registration!D96="","",Registration!D96) -> 
A91: =Registration!A97 -> 1086 | B91: =Registration!B97&" "&Registration!C97 ->  | C91: =IF(Registration!E97="X","Faculty","") ->  | D91: =IF(Registration!#REF!=2,"S",IF(Registration!#REF!=3,"M",IF(Registration!#REF!=4,"L",IF(Registration!#REF!=5,"XL",IF(Registration!#REF!=6,"XXL",IF(Registration!#REF!=7,"XXXL","")))))) ->  | E91: =IF(Registration!D97="","",Registration!D97) -> 
A92: =Registration!A98 -> 1087 | B92: =Registration!B98&" "&Registration!C98 ->  | C92: =IF(Registration!E98="X","Faculty","") ->  | D92: =IF(Registration!#REF!=2,"S",IF(Registration!#REF!=3,"M",IF(Registration!#REF!=4,"L",IF(Registration!#REF!=5,"XL",IF(Registration!#REF!=6,"XXL",IF(Registration!#REF!=7,"XXXL","")))))) ->  | E92: =IF(Registration!D98="","",Registration!D98) -> 
A93: =Registration!A99 -> 1088 | B93: =Registration!B99&" "&Registration!C99 ->  | C93: =IF(Registration!E99="X","Faculty","") ->  | D93: =IF(Registration!#REF!=2,"S",IF(Registration!#REF!=3,"M",IF(Registration!#REF!=4,"L",IF(Registration!#REF!=5,"XL",IF(Registration!#REF!=6,"XXL",IF(Registration!#REF!=7,"XXXL","")))))) ->  | E93: =IF(Registration!D99="","",Registration!D99) -> 
A94: =Registration!A100 -> 1089 | B94: =Registration!B100&" "&Registration!C100 ->  | C94: =IF(Registration!E100="X","Faculty","") ->  | D94: =IF(Registration!#REF!=2,"S",IF(Registration!#REF!=3,"M",IF(Registration!#REF!=4,"L",IF(Registration!#REF!=5,"XL",IF(Registration!#REF!=6,"XXL",IF(Registration!#REF!=7,"XXXL","")))))) ->  | E94: =IF(Registration!D100="","",Registration!D100) -> 
A95: =Registration!A101 -> 1090 | B95: =Registration!B101&" "&Registration!C101 ->  | C95: =IF(Registration!E101="X","Faculty","") ->  | D95: =IF(Registration!#REF!=2,"S",IF(Registration!#REF!=3,"M",IF(Registration!#REF!=4,"L",IF(Registration!#REF!=5,"XL",IF(Registration!#REF!=6,"XXL",IF(Registration!#REF!=7,"XXXL","")))))) ->  | E95: =IF(Registration!D101="","",Registration!D101) -> 
A96: =Registration!A102 -> 1091 | B96: =Registration!B102&" "&Registration!C102 ->  | C96: =IF(Registration!E102="X","Faculty","") ->  | D96: =IF(Registration!#REF!=2,"S",IF(Registration!#REF!=3,"M",IF(Registration!#REF!=4,"L",IF(Registration!#REF!=5,"XL",IF(Registration!#REF!=6,"XXL",IF(Registration!#REF!=7,"XXXL","")))))) ->  | E96: =IF(Registration!D102="","",Registration!D102) -> 
A97: =Registration!A103 -> 1092 | B97: =Registration!B103&" "&Registration!C103 ->  | C97: =IF(Registration!E103="X","Faculty","") ->  | D97: =IF(Registration!#REF!=2,"S",IF(Registration!#REF!=3,"M",IF(Registration!#REF!=4,"L",IF(Registration!#REF!=5,"XL",IF(Registration!#REF!=6,"XXL",IF(Registration!#REF!=7,"XXXL","")))))) ->  | E97: =IF(Registration!D103="","",Registration!D103) -> 
A98: =Registration!A104 -> 1093 | B98: =Registration!B104&" "&Registration!C104 ->  | C98: =IF(Registration!E104="X","Faculty","") ->  | D98: =IF(Registration!#REF!=2,"S",IF(Registration!#REF!=3,"M",IF(Registration!#REF!=4,"L",IF(Registration!#REF!=5,"XL",IF(Registration!#REF!=6,"XXL",IF(Registration!#REF!=7,"XXXL","")))))) ->  | E98: =IF(Registration!D104="","",Registration!D104) -> 
A99: =Registration!A105 -> 1094 | B99: =Registration!B105&" "&Registration!C105 ->  | C99: =IF(Registration!E105="X","Faculty","") ->  | D99: =IF(Registration!#REF!=2,"S",IF(Registration!#REF!=3,"M",IF(Registration!#REF!=4,"L",IF(Registration!#REF!=5,"XL",IF(Registration!#REF!=6,"XXL",IF(Registration!#REF!=7,"XXXL","")))))) ->  | E99: =IF(Registration!D105="","",Registration!D105) -> 
A100: =Registration!A106 -> 1095 | B100: =Registration!B106&" "&Registration!C106 ->  | C100: =IF(Registration!E106="X","Faculty","") ->  | D100: =IF(Registration!#REF!=2,"S",IF(Registration!#REF!=3,"M",IF(Registration!#REF!=4,"L",IF(Registration!#REF!=5,"XL",IF(Registration!#REF!=6,"XXL",IF(Registration!#REF!=7,"XXXL","")))))) ->  | E100: =IF(Registration!D106="","",Registration!D106) -> 
A101: =Registration!A107 -> 1096 | B101: =Registration!B107&" "&Registration!C107 ->  | C101: =IF(Registration!E107="X","Faculty","") ->  | D101: =IF(Registration!#REF!=2,"S",IF(Registration!#REF!=3,"M",IF(Registration!#REF!=4,"L",IF(Registration!#REF!=5,"XL",IF(Registration!#REF!=6,"XXL",IF(Registration!#REF!=7,"XXXL","")))))) ->  | E101: =IF(Registration!D107="","",Registration!D107) -> 
A102: =Registration!A108 -> 1097 | B102: =Registration!B108&" "&Registration!C108 ->  | C102: =IF(Registration!E108="X","Faculty","") ->  | D102: =IF(Registration!#REF!=2,"S",IF(Registration!#REF!=3,"M",IF(Registration!#REF!=4,"L",IF(Registration!#REF!=5,"XL",IF(Registration!#REF!=6,"XXL",IF(Registration!#REF!=7,"XXXL","")))))) ->  | E102: =IF(Registration!D108="","",Registration!D108) -> 
A103: =Registration!A109 -> 1098 | B103: =Registration!B109&" "&Registration!C109 ->  | C103: =IF(Registration!E109="X","Faculty","") ->  | D103: =IF(Registration!#REF!=2,"S",IF(Registration!#REF!=3,"M",IF(Registration!#REF!=4,"L",IF(Registration!#REF!=5,"XL",IF(Registration!#REF!=6,"XXL",IF(Registration!#REF!=7,"XXXL","")))))) ->  | E103: =IF(Registration!D109="","",Registration!D109) -> 
A104: =Registration!A110 -> 1099 | B104: =Registration!B110&" "&Registration!C110 ->  | C104: =IF(Registration!E110="X","Faculty","") ->  | D104: =IF(Registration!#REF!=2,"S",IF(Registration!#REF!=3,"M",IF(Registration!#REF!=4,"L",IF(Registration!#REF!=5,"XL",IF(Registration!#REF!=6,"XXL",IF(Registration!#REF!=7,"XXXL","")))))) ->  | E104: =IF(Registration!D110="","",Registration!D110) -> 

Sheet Event Registrations (hidden)
A2: 2018 National Collegiate Landscape Competition Event Registration
A3: =Registration!B5 -> 1000 Alamance Community College
A5: Event Registration
A6: Event Description | B6: Participating Student
A7: =Registration!J11 -> 3D Exterior Landscape Design | B7: =IF(ISNA(VLOOKUP(Registration!O11,Registration!A12:F110,8,FALSE)),"",VLOOKUP(Registration!O11,Registration!A12:F110,8,FALSE)) -> 
A9: =Registration!J13 -> Annual & Perennial Identification | B9: =IF(ISNA(VLOOKUP(Registration!O13,Registration!A12:F110,8,FALSE)),"",VLOOKUP(Registration!O13,Registration!A12:F110,8,FALSE)) -> 
A10: =Registration!J14 -> Annual & Perennial Identification | B10: =IF(ISNA(VLOOKUP(Registration!O14,Registration!A12:F110,8,FALSE)),"",VLOOKUP(Registration!O14,Registration!A12:F110,8,FALSE)) -> 
A12: =Registration!J16 -> Arboriculture Techniques | B12: =IF(ISNA(VLOOKUP(Registration!O16,Registration!A12:F110,8,FALSE)),"",VLOOKUP(Registration!O16,Registration!A12:F110,8,FALSE)) -> 
A13: =Registration!J17 -> Arboriculture Techniques | B13: =IF(ISNA(VLOOKUP(Registration!O17,Registration!A12:F110,8,FALSE)),"",VLOOKUP(Registration!O17,Registration!A12:F110,8,FALSE)) -> 
A15: =Registration!J19 -> Business Management | B15: =IF(ISNA(VLOOKUP(Registration!O19,Registration!A12:F110,8,FALSE)),"",VLOOKUP(Registration!O19,Registration!A12:F110,8,FALSE)) -> 
A16: =Registration!J20 -> Business Management | B16: =IF(ISNA(VLOOKUP(Registration!O20,Registration!A12:F110,8,FALSE)),"",VLOOKUP(Registration!O20,Registration!A12:F110,8,FALSE)) -> 
A18: =Registration!J22 -> Compact Excavator Operation | B18: =IF(ISNA(VLOOKUP(Registration!O22,Registration!A12:F110,8,FALSE)),"",VLOOKUP(Registration!O22,Registration!A12:F110,8,FALSE)) -> 
A20: =Registration!J24 -> Compact Track/Skid Steer Loader Operation | B20: =IF(ISNA(VLOOKUP(Registration!O24,Registration!A12:F110,8,FALSE)),"",VLOOKUP(Registration!O24,Registration!A12:F110,8,FALSE)) -> 
A22: =Registration!J26 -> Computer Aided Landscape Design | B22: =IF(ISNA(VLOOKUP(Registration!O26,Registration!A12:F110,8,FALSE)),"",VLOOKUP(Registration!O26,Registration!A12:F110,8,FALSE)) -> 
A24: =Registration!J28 -> Construction Cost Estimating | B24: =IF(ISNA(VLOOKUP(Registration!O28,Registration!A12:F110,8,FALSE)),"",VLOOKUP(Registration!O28,Registration!A12:F110,8,FALSE)) -> 
A25: =Registration!J29 -> Construction Cost Estimating | B25: =IF(ISNA(VLOOKUP(Registration!O29,Registration!A12:F110,8,FALSE)),"",VLOOKUP(Registration!O29,Registration!A12:F110,8,FALSE)) -> 
A27: =Registration!J31 -> Employee Development | B27: =IF(ISNA(VLOOKUP(Registration!O31,Registration!A12:F110,8,FALSE)),"",VLOOKUP(Registration!O31,Registration!A12:F110,8,FALSE)) -> 
A28: =Registration!J32 -> Employee Development | B28: =IF(ISNA(VLOOKUP(Registration!O32,Registration!A12:F110,8,FALSE)),"",VLOOKUP(Registration!O32,Registration!A12:F110,8,FALSE)) -> 
A30: =Registration!J34 -> Exterior Landscape Design | B30: =IF(ISNA(VLOOKUP(Registration!O34,Registration!A12:F87,8,FALSE)),"",VLOOKUP(Registration!O34,Registration!A12:F87,8,FALSE)) -> 
A32: Flower & Foliage Identification | B32: =IF(ISNA(VLOOKUP(Registration!O36,Registration!A12:F87,8,FALSE)),"",VLOOKUP(Registration!O36,Registration!A12:F87,8,FALSE)) -> 
A33: Flower & Foliage Identification | B33: =IF(ISNA(VLOOKUP(Registration!O37,Registration!A12:F87,8,FALSE)),"",VLOOKUP(Registration!O37,Registration!A12:F87,8,FALSE)) -> 
A35: =Registration!#REF! ->  | B35: =IF(ISNA(VLOOKUP(Registration!O39,Registration!A12:F87,8,FALSE)),"",VLOOKUP(Registration!O39,Registration!A12:F87,8,FALSE)) -> 
A36: =Registration!#REF! ->  | B36: =IF(ISNA(VLOOKUP(Registration!O40,Registration!A12:F87,8,FALSE)),"",VLOOKUP(Registration!O40,Registration!A12:F87,8,FALSE)) -> 
A38: =Registration!J39 -> Interior Landscape Design | B38: =IF(ISNA(VLOOKUP(Registration!O42,Registration!A12:F87,8,FALSE)),"",VLOOKUP(Registration!O42,Registration!A12:F87,8,FALSE)) -> 
A40: =Registration!J41 -> Interior Plant Identification | B40: =IF(ISNA(VLOOKUP(Registration!O44,Registration!A12:F87,8,FALSE)),"",VLOOKUP(Registration!O44,Registration!A12:F87,8,FALSE)) -> 
A41: =Registration!J42 -> Interior Plant Identification | B41: =IF(ISNA(VLOOKUP(Registration!O45,Registration!A12:F87,8,FALSE)),"",VLOOKUP(Registration!O45,Registration!A12:F87,8,FALSE)) -> 
A43: =Registration!J44 -> Irrigation Assembly | B43: =IF(ISNA(VLOOKUP(Registration!O47,Registration!A12:F87,8,FALSE)),"",VLOOKUP(Registration!O47,Registration!A12:F87,8,FALSE)) -> 
A44: =Registration!J45 -> Irrigation Assembly | B44: =IF(ISNA(VLOOKUP(Registration!O48,Registration!A12:F87,8,FALSE)),"",VLOOKUP(Registration!O48,Registration!A12:F87,8,FALSE)) -> 
A46: =Registration!J47 -> Irrigation Design | B46: =IF(ISNA(VLOOKUP(Registration!O50,Registration!A12:F87,8,FALSE)),"",VLOOKUP(Registration!O50,Registration!A12:F87,8,FALSE)) -> 
A48: =Registration!J49 -> Irrigation Troubleshooting | B48: =IF(ISNA(VLOOKUP(Registration!O52,Registration!A12:F87,8,FALSE)),"",VLOOKUP(Registration!O52,Registration!A12:F87,8,FALSE)) -> 
A49: =Registration!J50 -> Irrigation Troubleshooting | B49: =IF(ISNA(VLOOKUP(Registration!O53,Registration!A12:F87,8,FALSE)),"",VLOOKUP(Registration!O53,Registration!A12:F87,8,FALSE)) -> 
A51: =Registration!J52 -> Landscape Lighting | B51: =IF(ISNA(VLOOKUP(Registration!O55,Registration!A12:F87,8,FALSE)),"",VLOOKUP(Registration!O55,Registration!A12:F87,8,FALSE)) -> 
A53: =Registration!J54 -> Landscape Maintenance Operations | B53: =IF(ISNA(VLOOKUP(Registration!O57,Registration!A12:F87,8,FALSE)),"",VLOOKUP(Registration!O57,Registration!A12:F87,8,FALSE)) -> 
A54: =Registration!J55 -> Landscape Maintenance Operations | B54: =IF(ISNA(VLOOKUP(Registration!O58,Registration!A12:F87,8,FALSE)),"",VLOOKUP(Registration!O58,Registration!A12:F87,8,FALSE)) -> 
A56: =Registration!J57 -> Landscape Plant Installation | B56: =IF(ISNA(VLOOKUP(Registration!O60,Registration!A12:F87,8,FALSE)),"",VLOOKUP(Registration!O60,Registration!A12:F87,8,FALSE)) -> 
A57: =Registration!J58 -> Landscape Plant Installation | B57: =IF(ISNA(VLOOKUP(Registration!O61,Registration!A12:F87,8,FALSE)),"",VLOOKUP(Registration!O61,Registration!A12:F87,8,FALSE)) -> 
A58: =Registration!J59 -> Landscape Plant Installation | B58: =IF(ISNA(VLOOKUP(Registration!O62,Registration!A12:F87,8,FALSE)),"",VLOOKUP(Registration!O62,Registration!A12:F87,8,FALSE)) -> 
A60: =Registration!J61 -> Maintenance Cost Estimating | B60: =IF(ISNA(VLOOKUP(Registration!O64,Registration!A12:F87,8,FALSE)),"",VLOOKUP(Registration!O64,Registration!A12:F87,8,FALSE)) -> 
A61: =Registration!J62 -> Maintenance Cost Estimating | B61: =IF(ISNA(VLOOKUP(Registration!O65,Registration!A12:F87,8,FALSE)),"",VLOOKUP(Registration!O65,Registration!A12:F87,8,FALSE)) -> 
A63: Mini Track Loader Operation | B63: =IF(ISNA(VLOOKUP(Registration!O67,Registration!A12:F87,8,FALSE)),"",VLOOKUP(Registration!O67,Registration!A12:F87,8,FALSE)) -> 
A65: Plant Problem Diagnosis | B65: =IF(ISNA(VLOOKUP(Registration!O69,Registration!A13:F88,8,FALSE)),"",VLOOKUP(Registration!O69,Registration!A13:F88,8,FALSE)) -> 
A66: Plant Problem Diagnosis | B66: =IF(ISNA(VLOOKUP(Registration!O70,Registration!A12:F87,8,FALSE)),"",VLOOKUP(Registration!O70,Registration!A12:F87,8,FALSE)) -> 
A68: Sales Presentation | B68: =IF(ISNA(VLOOKUP(Registration!O72,Registration!A12:F87,8,FALSE)),"",VLOOKUP(Registration!O72,Registration!A12:F87,8,FALSE)) -> 
A70: =Registration!J74 -> Small Engine Repair | B70: =IF(ISNA(VLOOKUP(Registration!O74,Registration!A12:F87,8,FALSE)),"",VLOOKUP(Registration!O74,Registration!A12:F87,8,FALSE)) -> 
A72: =Registration!J79 -> Tractor Loader Backhoe Operation | B72: =IF(ISNA(VLOOKUP(Registration!O76,Registration!A12:F87,8,FALSE)),"",VLOOKUP(Registration!O76,Registration!A12:F87,8,FALSE)) -> 
A74: =Registration!J81 -> Truck & Trailer Operation | B74: =IF(ISNA(VLOOKUP(Registration!O78,Registration!A12:F87,8,FALSE)),"",VLOOKUP(Registration!O78,Registration!A12:F87,8,FALSE)) -> 
A75: =Registration!J82 -> Truck & Trailer Operation | B75: =IF(ISNA(VLOOKUP(Registration!O79,Registration!A12:F87,8,FALSE)),"",VLOOKUP(Registration!O79,Registration!A12:F87,8,FALSE)) -> 
A77: =Registration!J84 -> Turf & Weed Identification | B77: =IF(ISNA(VLOOKUP(Registration!O81,Registration!A12:F87,8,FALSE)),"",VLOOKUP(Registration!O81,Registration!A12:F87,8,FALSE)) -> 
A78: =Registration!J85 -> Turf & Weed Identification | B78: =IF(ISNA(VLOOKUP(Registration!O82,Registration!A12:F87,8,FALSE)),"",VLOOKUP(Registration!O82,Registration!A12:F87,8,FALSE)) -> 
A80: =Registration!#REF! ->  | B80: =IF(ISNA(VLOOKUP(Registration!O84,Registration!A12:F87,8,FALSE)),"",VLOOKUP(Registration!O84,Registration!A12:F87,8,FALSE)) -> 
A81: =Registration!#REF! ->  | B81: =IF(ISNA(VLOOKUP(Registration!O85,Registration!A12:F87,8,FALSE)),"",VLOOKUP(Registration!O85,Registration!A12:F87,8,FALSE)) -> 
A83: =Registration!J87 -> Woody Ornamental Plant Identification | B83: =IF(ISNA(VLOOKUP(Registration!O87,Registration!A12:F87,8,FALSE)),"",VLOOKUP(Registration!O87,Registration!A12:F87,8,FALSE)) -> 
A84: =Registration!J88 -> Woody Ornamental Plant Identification | B84: =IF(ISNA(VLOOKUP(Registration!O88,Registration!A12:F87,8,FALSE)),"",VLOOKUP(Registration!O88,Registration!A12:F87,8,FALSE)) -> 
B85: =IF(ISNA(VLOOKUP(Registration!O83,Registration!A12:F87,8,FALSE)),"",VLOOKUP(Registration!O83,Registration!A12:F87,8,FALSE)) -> 

Sheet Workshop Registrations (hidden)
A2: 2018 National Collegiate Landscape Competition Workshop Registration
A3: =Registration!B5 -> 1000 Alamance Community College
A5: Workshop Registrations
A6: Workshop Registration | B6: Participating Student
A7: =IF(ISNA(VLOOKUP(Registration!#REF!,'For Office Use Only'!E2:F27,2,FALSE)),"",VLOOKUP(Registration!#REF!,'For Office Use Only'!E2:F27,2,FALSE)) ->  | B7: =IF(ISNA(VLOOKUP(Registration!#REF!,Registration!A12:F110,8,FALSE)),"",VLOOKUP(Registration!#REF!,Registration!A12:F110,8,FALSE)) -> 
A8: =IF(ISNA(VLOOKUP(Registration!#REF!,'For Office Use Only'!E2:F27,2,FALSE)),"",VLOOKUP(Registration!#REF!,'For Office Use Only'!E2:F27,2,FALSE)) ->  | B8: =IF(ISNA(VLOOKUP(Registration!#REF!,Registration!A12:F110,8,FALSE)),"",VLOOKUP(Registration!#REF!,Registration!A12:F110,8,FALSE)) -> 
A9: =IF(ISNA(VLOOKUP(Registration!#REF!,'For Office Use Only'!E2:F27,2,FALSE)),"",VLOOKUP(Registration!#REF!,'For Office Use Only'!E2:F27,2,FALSE)) ->  | B9: =IF(ISNA(VLOOKUP(Registration!#REF!,Registration!A12:F110,8,FALSE)),"",VLOOKUP(Registration!#REF!,Registration!A12:F110,8,FALSE)) -> 
A10: =IF(ISNA(VLOOKUP(Registration!#REF!,'For Office Use Only'!E2:F27,2,FALSE)),"",VLOOKUP(Registration!#REF!,'For Office Use Only'!E2:F27,2,FALSE)) ->  | B10: =IF(ISNA(VLOOKUP(Registration!#REF!,Registration!A12:F110,8,FALSE)),"",VLOOKUP(Registration!#REF!,Registration!A12:F110,8,FALSE)) -> 
A11: =IF(ISNA(VLOOKUP(Registration!#REF!,'For Office Use Only'!E2:F27,2,FALSE)),"",VLOOKUP(Registration!#REF!,'For Office Use Only'!E2:F27,2,FALSE)) ->  | B11: =IF(ISNA(VLOOKUP(Registration!#REF!,Registration!A12:F110,8,FALSE)),"",VLOOKUP(Registration!#REF!,Registration!A12:F110,8,FALSE)) -> 
A12: =IF(ISNA(VLOOKUP(Registration!#REF!,'For Office Use Only'!E2:F27,2,FALSE)),"",VLOOKUP(Registration!#REF!,'For Office Use Only'!E2:F27,2,FALSE)) ->  | B12: =IF(ISNA(VLOOKUP(Registration!#REF!,Registration!A12:F110,8,FALSE)),"",VLOOKUP(Registration!#REF!,Registration!A12:F110,8,FALSE)) -> 
A13: =IF(ISNA(VLOOKUP(Registration!#REF!,'For Office Use Only'!E2:F27,2,FALSE)),"",VLOOKUP(Registration!#REF!,'For Office Use Only'!E2:F27,2,FALSE)) ->  | B13: =IF(ISNA(VLOOKUP(Registration!#REF!,Registration!A12:F110,8,FALSE)),"",VLOOKUP(Registration!#REF!,Registration!A12:F110,8,FALSE)) -> 
A14: =IF(ISNA(VLOOKUP(Registration!#REF!,'For Office Use Only'!E2:F27,2,FALSE)),"",VLOOKUP(Registration!#REF!,'For Office Use Only'!E2:F27,2,FALSE)) ->  | B14: =IF(ISNA(VLOOKUP(Registration!#REF!,Registration!A12:F110,8,FALSE)),"",VLOOKUP(Registration!#REF!,Registration!A12:F110,8,FALSE)) -> 
A15: =IF(ISNA(VLOOKUP(Registration!#REF!,'For Office Use Only'!E2:F27,2,FALSE)),"",VLOOKUP(Registration!#REF!,'For Office Use Only'!E2:F27,2,FALSE)) ->  | B15: =IF(ISNA(VLOOKUP(Registration!#REF!,Registration!A12:F110,8,FALSE)),"",VLOOKUP(Registration!#REF!,Registration!A12:F110,8,FALSE)) -> 
A16: =IF(ISNA(VLOOKUP(Registration!#REF!,'For Office Use Only'!E2:F27,2,FALSE)),"",VLOOKUP(Registration!#REF!,'For Office Use Only'!E2:F27,2,FALSE)) ->  | B16: =IF(ISNA(VLOOKUP(Registration!#REF!,Registration!A12:F110,8,FALSE)),"",VLOOKUP(Registration!#REF!,Registration!A12:F110,8,FALSE)) -> 
A17: =IF(ISNA(VLOOKUP(Registration!#REF!,'For Office Use Only'!E2:F27,2,FALSE)),"",VLOOKUP(Registration!#REF!,'For Office Use Only'!E2:F27,2,FALSE)) ->  | B17: =IF(ISNA(VLOOKUP(Registration!#REF!,Registration!A12:F110,8,FALSE)),"",VLOOKUP(Registration!#REF!,Registration!A12:F110,8,FALSE)) -> 
A18: =IF(ISNA(VLOOKUP(Registration!#REF!,'For Office Use Only'!E2:F27,2,FALSE)),"",VLOOKUP(Registration!#REF!,'For Office Use Only'!E2:F27,2,FALSE)) ->  | B18: =IF(ISNA(VLOOKUP(Registration!#REF!,Registration!A12:F110,8,FALSE)),"",VLOOKUP(Registration!#REF!,Registration!A12:F110,8,FALSE)) -> 
A19: =IF(ISNA(VLOOKUP(Registration!#REF!,'For Office Use Only'!E2:F27,2,FALSE)),"",VLOOKUP(Registration!#REF!,'For Office Use Only'!E2:F27,2,FALSE)) ->  | B19: =IF(ISNA(VLOOKUP(Registration!#REF!,Registration!A12:F110,8,FALSE)),"",VLOOKUP(Registration!#REF!,Registration!A12:F110,8,FALSE)) -> 
A20: =IF(ISNA(VLOOKUP(Registration!#REF!,'For Office Use Only'!E2:F27,2,FALSE)),"",VLOOKUP(Registration!#REF!,'For Office Use Only'!E2:F27,2,FALSE)) ->  | B20: =IF(ISNA(VLOOKUP(Registration!#REF!,Registration!A12:F110,8,FALSE)),"",VLOOKUP(Registration!#REF!,Registration!A12:F110,8,FALSE)) -> 
A21: =IF(ISNA(VLOOKUP(Registration!#REF!,'For Office Use Only'!E2:F27,2,FALSE)),"",VLOOKUP(Registration!#REF!,'For Office Use Only'!E2:F27,2,FALSE)) ->  | B21: =IF(ISNA(VLOOKUP(Registration!#REF!,Registration!A12:F110,8,FALSE)),"",VLOOKUP(Registration!#REF!,Registration!A12:F110,8,FALSE)) -> 
A22: =IF(ISNA(VLOOKUP(Registration!#REF!,'For Office Use Only'!E2:F27,2,FALSE)),"",VLOOKUP(Registration!#REF!,'For Office Use Only'!E2:F27,2,FALSE)) ->  | B22: =IF(ISNA(VLOOKUP(Registration!#REF!,Registration!A12:F110,8,FALSE)),"",VLOOKUP(Registration!#REF!,Registration!A12:F110,8,FALSE)) -> 
A23: =IF(ISNA(VLOOKUP(Registration!#REF!,'For Office Use Only'!E2:F27,2,FALSE)),"",VLOOKUP(Registration!#REF!,'For Office Use Only'!E2:F27,2,FALSE)) ->  | B23: =IF(ISNA(VLOOKUP(Registration!#REF!,Registration!A12:F110,8,FALSE)),"",VLOOKUP(Registration!#REF!,Registration!A12:F110,8,FALSE)) -> 
A24: =IF(ISNA(VLOOKUP(Registration!#REF!,'For Office Use Only'!E2:F27,2,FALSE)),"",VLOOKUP(Registration!#REF!,'For Office Use Only'!E2:F27,2,FALSE)) ->  | B24: =IF(ISNA(VLOOKUP(Registration!#REF!,Registration!A12:F110,8,FALSE)),"",VLOOKUP(Registration!#REF!,Registration!A12:F110,8,FALSE)) -> 
A25: =IF(ISNA(VLOOKUP(Registration!#REF!,'For Office Use Only'!E2:F27,2,FALSE)),"",VLOOKUP(Registration!#REF!,'For Office Use Only'!E2:F27,2,FALSE)) ->  | B25: =IF(ISNA(VLOOKUP(Registration!#REF!,Registration!A12:F110,8,FALSE)),"",VLOOKUP(Registration!#REF!,Registration!A12:F110,8,FALSE)) -> 
A26: =IF(ISNA(VLOOKUP(Registration!#REF!,'For Office Use Only'!E2:F27,2,FALSE)),"",VLOOKUP(Registration!#REF!,'For Office Use Only'!E2:F27,2,FALSE)) ->  | B26: =IF(ISNA(VLOOKUP(Registration!#REF!,Registration!A12:F110,8,FALSE)),"",VLOOKUP(Registration!#REF!,Registration!A12:F110,8,FALSE)) -> 
A27: =IF(ISNA(VLOOKUP(Registration!#REF!,'For Office Use Only'!E2:F27,2,FALSE)),"",VLOOKUP(Registration!#REF!,'For Office Use Only'!E2:F27,2,FALSE)) ->  | B27: =IF(ISNA(VLOOKUP(Registration!#REF!,Registration!A12:F110,8,FALSE)),"",VLOOKUP(Registration!#REF!,Registration!A12:F110,8,FALSE)) -> 
A28: =IF(ISNA(VLOOKUP(Registration!#REF!,'For Office Use Only'!E2:F27,2,FALSE)),"",VLOOKUP(Registration!#REF!,'For Office Use Only'!E2:F27,2,FALSE)) ->  | B28: =IF(ISNA(VLOOKUP(Registration!#REF!,Registration!A12:F110,8,FALSE)),"",VLOOKUP(Registration!#REF!,Registration!A12:F110,8,FALSE)) -> 
A29: =IF(ISNA(VLOOKUP(Registration!#REF!,'For Office Use Only'!E1:F27,2,FALSE)),"",VLOOKUP(Registration!#REF!,'For Office Use Only'!E1:F27,2,FALSE)) ->  | B29: =IF(ISNA(VLOOKUP(Registration!#REF!,Registration!A12:F110,8,FALSE)),"",VLOOKUP(Registration!#REF!,Registration!A12:F110,8,FALSE)) -> 
A30: =IF(ISNA(VLOOKUP(Registration!#REF!,'For Office Use Only'!E1:F27,2,FALSE)),"",VLOOKUP(Registration!#REF!,'For Office Use Only'!E1:F27,2,FALSE)) ->  | B30: =IF(ISNA(VLOOKUP(Registration!#REF!,Registration!A12:F110,8,FALSE)),"",VLOOKUP(Registration!#REF!,Registration!A12:F110,8,FALSE)) -> 
A31: =IF(ISNA(VLOOKUP(Registration!#REF!,'For Office Use Only'!E1:F27,2,FALSE)),"",VLOOKUP(Registration!#REF!,'For Office Use Only'!E1:F27,2,FALSE)) ->  | B31: =IF(ISNA(VLOOKUP(Registration!#REF!,Registration!A12:F110,8,FALSE)),"",VLOOKUP(Registration!#REF!,Registration!A12:F110,8,FALSE)) -> 
A32: =IF(ISNA(VLOOKUP(Registration!#REF!,'For Office Use Only'!E1:F27,2,FALSE)),"",VLOOKUP(Registration!#REF!,'For Office Use Only'!E1:F27,2,FALSE)) ->  | B32: =IF(ISNA(VLOOKUP(Registration!#REF!,Registration!A12:F110,8,FALSE)),"",VLOOKUP(Registration!#REF!,Registration!A12:F110,8,FALSE)) -> 
A33: =IF(ISNA(VLOOKUP(Registration!#REF!,'For Office Use Only'!E1:F27,2,FALSE)),"",VLOOKUP(Registration!#REF!,'For Office Use Only'!E1:F27,2,FALSE)) ->  | B33: =IF(ISNA(VLOOKUP(Registration!#REF!,Registration!A12:F110,8,FALSE)),"",VLOOKUP(Registration!#REF!,Registration!A12:F110,8,FALSE)) -> 
A34: =IF(ISNA(VLOOKUP(Registration!#REF!,'For Office Use Only'!E1:F27,2,FALSE)),"",VLOOKUP(Registration!#REF!,'For Office Use Only'!E1:F27,2,FALSE)) ->  | B34: =IF(ISNA(VLOOKUP(Registration!#REF!,Registration!A12:F110,8,FALSE)),"",VLOOKUP(Registration!#REF!,Registration!A12:F110,8,FALSE)) -> 
A35: =IF(ISNA(VLOOKUP(Registration!#REF!,'For Office Use Only'!E1:F27,2,FALSE)),"",VLOOKUP(Registration!#REF!,'For Office Use Only'!E1:F27,2,FALSE)) ->  | B35: =IF(ISNA(VLOOKUP(Registration!#REF!,Registration!A12:F110,8,FALSE)),"",VLOOKUP(Registration!#REF!,Registration!A12:F110,8,FALSE)) -> 
A36: =IF(ISNA(VLOOKUP(Registration!#REF!,'For Office Use Only'!E1:F27,2,FALSE)),"",VLOOKUP(Registration!#REF!,'For Office Use Only'!E1:F27,2,FALSE)) ->  | B36: =IF(ISNA(VLOOKUP(Registration!#REF!,Registration!A12:F110,8,FALSE)),"",VLOOKUP(Registration!#REF!,Registration!A12:F110,8,FALSE)) -> 
A37: =IF(ISNA(VLOOKUP(Registration!#REF!,'For Office Use Only'!E1:F27,2,FALSE)),"",VLOOKUP(Registration!#REF!,'For Office Use Only'!E1:F27,2,FALSE)) ->  | B37: =IF(ISNA(VLOOKUP(Registration!#REF!,Registration!A12:F110,8,FALSE)),"",VLOOKUP(Registration!#REF!,Registration!A12:F110,8,FALSE)) -> 
A38: =IF(ISNA(VLOOKUP(Registration!#REF!,'For Office Use Only'!E1:F27,2,FALSE)),"",VLOOKUP(Registration!#REF!,'For Office Use Only'!E1:F27,2,FALSE)) ->  | B38: =IF(ISNA(VLOOKUP(Registration!#REF!,Registration!A12:F110,8,FALSE)),"",VLOOKUP(Registration!#REF!,Registration!A12:F110,8,FALSE)) -> 
A39: =IF(ISNA(VLOOKUP(Registration!#REF!,'For Office Use Only'!E1:F27,2,FALSE)),"",VLOOKUP(Registration!#REF!,'For Office Use Only'!E1:F27,2,FALSE)) ->  | B39: =IF(ISNA(VLOOKUP(Registration!#REF!,Registration!A12:F110,8,FALSE)),"",VLOOKUP(Registration!#REF!,Registration!A12:F110,8,FALSE)) -> 
A40: =IF(ISNA(VLOOKUP(Registration!#REF!,'For Office Use Only'!E1:F27,2,FALSE)),"",VLOOKUP(Registration!#REF!,'For Office Use Only'!E1:F27,2,FALSE)) ->  | B40: =IF(ISNA(VLOOKUP(Registration!#REF!,Registration!A12:F110,8,FALSE)),"",VLOOKUP(Registration!#REF!,Registration!A12:F110,8,FALSE)) -> 
A41: =IF(ISNA(VLOOKUP(Registration!#REF!,'For Office Use Only'!E1:F27,2,FALSE)),"",VLOOKUP(Registration!#REF!,'For Office Use Only'!E1:F27,2,FALSE)) ->  | B41: =IF(ISNA(VLOOKUP(Registration!#REF!,Registration!A12:F110,8,FALSE)),"",VLOOKUP(Registration!#REF!,Registration!A12:F110,8,FALSE)) -> 
A42: =IF(ISNA(VLOOKUP(Registration!#REF!,'For Office Use Only'!E1:F27,2,FALSE)),"",VLOOKUP(Registration!#REF!,'For Office Use Only'!E1:F27,2,FALSE)) ->  | B42: =IF(ISNA(VLOOKUP(Registration!#REF!,Registration!A12:F110,8,FALSE)),"",VLOOKUP(Registration!#REF!,Registration!A12:F110,8,FALSE)) -> 
A43: =IF(ISNA(VLOOKUP(Registration!#REF!,'For Office Use Only'!E1:F27,2,FALSE)),"",VLOOKUP(Registration!#REF!,'For Office Use Only'!E1:F27,2,FALSE)) ->  | B43: =IF(ISNA(VLOOKUP(Registration!#REF!,Registration!A12:F110,8,FALSE)),"",VLOOKUP(Registration!#REF!,Registration!A12:F110,8,FALSE)) -> 
A44: =IF(ISNA(VLOOKUP(Registration!#REF!,'For Office Use Only'!E1:F27,2,FALSE)),"",VLOOKUP(Registration!#REF!,'For Office Use Only'!E1:F27,2,FALSE)) ->  | B44: =IF(ISNA(VLOOKUP(Registration!#REF!,Registration!A12:F110,8,FALSE)),"",VLOOKUP(Registration!#REF!,Registration!A12:F110,8,FALSE)) -> 
A45: =IF(ISNA(VLOOKUP(Registration!#REF!,'For Office Use Only'!E1:F27,2,FALSE)),"",VLOOKUP(Registration!#REF!,'For Office Use Only'!E1:F27,2,FALSE)) ->  | B45: =IF(ISNA(VLOOKUP(Registration!#REF!,Registration!A12:F110,8,FALSE)),"",VLOOKUP(Registration!#REF!,Registration!A12:F110,8,FALSE)) -> 
A46: =IF(ISNA(VLOOKUP(Registration!#REF!,'For Office Use Only'!E1:F27,2,FALSE)),"",VLOOKUP(Registration!#REF!,'For Office Use Only'!E1:F27,2,FALSE)) ->  | B46: =IF(ISNA(VLOOKUP(Registration!#REF!,Registration!A12:F110,8,FALSE)),"",VLOOKUP(Registration!#REF!,Registration!A12:F110,8,FALSE)) -> 
A47: =IF(ISNA(VLOOKUP(Registration!#REF!,'For Office Use Only'!E1:F27,2,FALSE)),"",VLOOKUP(Registration!#REF!,'For Office Use Only'!E1:F27,2,FALSE)) ->  | B47: =IF(ISNA(VLOOKUP(Registration!#REF!,Registration!A12:F110,8,FALSE)),"",VLOOKUP(Registration!#REF!,Registration!A12:F110,8,FALSE)) -> 
A48: =IF(ISNA(VLOOKUP(Registration!#REF!,'For Office Use Only'!E1:F27,2,FALSE)),"",VLOOKUP(Registration!#REF!,'For Office Use Only'!E1:F27,2,FALSE)) ->  | B48: =IF(ISNA(VLOOKUP(Registration!#REF!,Registration!A12:F110,8,FALSE)),"",VLOOKUP(Registration!#REF!,Registration!A12:F110,8,FALSE)) -> 
A49: =IF(ISNA(VLOOKUP(Registration!#REF!,'For Office Use Only'!E1:F27,2,FALSE)),"",VLOOKUP(Registration!#REF!,'For Office Use Only'!E1:F27,2,FALSE)) ->  | B49: =IF(ISNA(VLOOKUP(Registration!#REF!,Registration!A12:F110,8,FALSE)),"",VLOOKUP(Registration!#REF!,Registration!A12:F110,8,FALSE)) -> 
A50: =IF(ISNA(VLOOKUP(Registration!#REF!,'For Office Use Only'!E1:F27,2,FALSE)),"",VLOOKUP(Registration!#REF!,'For Office Use Only'!E1:F27,2,FALSE)) ->  | B50: =IF(ISNA(VLOOKUP(Registration!#REF!,Registration!A12:F110,8,FALSE)),"",VLOOKUP(Registration!#REF!,Registration!A12:F110,8,FALSE)) -> 
A51: =IF(ISNA(VLOOKUP(Registration!#REF!,'For Office Use Only'!E1:F27,2,FALSE)),"",VLOOKUP(Registration!#REF!,'For Office Use Only'!E1:F27,2,FALSE)) ->  | B51: =IF(ISNA(VLOOKUP(Registration!#REF!,Registration!A12:F110,8,FALSE)),"",VLOOKUP(Registration!#REF!,Registration!A12:F110,8,FALSE)) -> 
A52: =IF(ISNA(VLOOKUP(Registration!#REF!,'For Office Use Only'!E1:F27,2,FALSE)),"",VLOOKUP(Registration!#REF!,'For Office Use Only'!E1:F27,2,FALSE)) ->  | B52: =IF(ISNA(VLOOKUP(Registration!#REF!,Registration!A12:F110,8,FALSE)),"",VLOOKUP(Registration!#REF!,Registration!A12:F110,8,FALSE)) -> 
A53: =IF(ISNA(VLOOKUP(Registration!#REF!,'For Office Use Only'!E1:F27,2,FALSE)),"",VLOOKUP(Registration!#REF!,'For Office Use Only'!E1:F27,2,FALSE)) ->  | B53: =IF(ISNA(VLOOKUP(Registration!#REF!,Registration!A12:F110,8,FALSE)),"",VLOOKUP(Registration!#REF!,Registration!A12:F110,8,FALSE)) -> 
A54: =IF(ISNA(VLOOKUP(Registration!#REF!,'For Office Use Only'!E1:F27,2,FALSE)),"",VLOOKUP(Registration!#REF!,'For Office Use Only'!E1:F27,2,FALSE)) ->  | B54: =IF(ISNA(VLOOKUP(Registration!#REF!,Registration!A12:F110,8,FALSE)),"",VLOOKUP(Registration!#REF!,Registration!A12:F110,8,FALSE)) -> 
A55: =IF(ISNA(VLOOKUP(Registration!#REF!,'For Office Use Only'!E1:F27,2,FALSE)),"",VLOOKUP(Registration!#REF!,'For Office Use Only'!E1:F27,2,FALSE)) ->  | B55: =IF(ISNA(VLOOKUP(Registration!#REF!,Registration!A12:F110,8,FALSE)),"",VLOOKUP(Registration!#REF!,Registration!A12:F110,8,FALSE)) -> 
A56: =IF(ISNA(VLOOKUP(Registration!#REF!,'For Office Use Only'!E1:F27,2,FALSE)),"",VLOOKUP(Registration!#REF!,'For Office Use Only'!E1:F27,2,FALSE)) ->  | B56: =IF(ISNA(VLOOKUP(Registration!#REF!,Registration!A12:F110,8,FALSE)),"",VLOOKUP(Registration!#REF!,Registration!A12:F110,8,FALSE)) -> 
A57: =IF(ISNA(VLOOKUP(Registration!#REF!,'For Office Use Only'!E1:F27,2,FALSE)),"",VLOOKUP(Registration!#REF!,'For Office Use Only'!E1:F27,2,FALSE)) ->  | B57: =IF(ISNA(VLOOKUP(Registration!#REF!,Registration!A12:F110,8,FALSE)),"",VLOOKUP(Registration!#REF!,Registration!A12:F110,8,FALSE)) -> 
A58: =IF(ISNA(VLOOKUP(Registration!#REF!,'For Office Use Only'!E1:F27,2,FALSE)),"",VLOOKUP(Registration!#REF!,'For Office Use Only'!E1:F27,2,FALSE)) ->  | B58: =IF(ISNA(VLOOKUP(Registration!#REF!,Registration!A12:F110,8,FALSE)),"",VLOOKUP(Registration!#REF!,Registration!A12:F110,8,FALSE)) -> 
A59: =IF(ISNA(VLOOKUP(Registration!#REF!,'For Office Use Only'!E1:F27,2,FALSE)),"",VLOOKUP(Registration!#REF!,'For Office Use Only'!E1:F27,2,FALSE)) ->  | B59: =IF(ISNA(VLOOKUP(Registration!#REF!,Registration!A12:F110,8,FALSE)),"",VLOOKUP(Registration!#REF!,Registration!A12:F110,8,FALSE)) -> 
A60: =IF(ISNA(VLOOKUP(Registration!#REF!,'For Office Use Only'!E1:F27,2,FALSE)),"",VLOOKUP(Registration!#REF!,'For Office Use Only'!E1:F27,2,FALSE)) ->  | B60: =IF(ISNA(VLOOKUP(Registration!#REF!,Registration!A12:F110,8,FALSE)),"",VLOOKUP(Registration!#REF!,Registration!A12:F110,8,FALSE)) -> 
A61: =IF(ISNA(VLOOKUP(Registration!#REF!,'For Office Use Only'!E1:F27,2,FALSE)),"",VLOOKUP(Registration!#REF!,'For Office Use Only'!E1:F27,2,FALSE)) ->  | B61: =IF(ISNA(VLOOKUP(Registration!#REF!,Registration!A12:F110,8,FALSE)),"",VLOOKUP(Registration!#REF!,Registration!A12:F110,8,FALSE)) -> 
A62: =IF(ISNA(VLOOKUP(Registration!#REF!,'For Office Use Only'!E1:F27,2,FALSE)),"",VLOOKUP(Registration!#REF!,'For Office Use Only'!E1:F27,2,FALSE)) ->  | B62: =IF(ISNA(VLOOKUP(Registration!#REF!,Registration!A12:F110,8,FALSE)),"",VLOOKUP(Registration!#REF!,Registration!A12:F110,8,FALSE)) -> 
A63: =IF(ISNA(VLOOKUP(Registration!#REF!,'For Office Use Only'!E1:F27,2,FALSE)),"",VLOOKUP(Registration!#REF!,'For Office Use Only'!E1:F27,2,FALSE)) ->  | B63: =IF(ISNA(VLOOKUP(Registration!#REF!,Registration!A12:F110,8,FALSE)),"",VLOOKUP(Registration!#REF!,Registration!A12:F110,8,FALSE)) -> 
A64: =IF(ISNA(VLOOKUP(Registration!#REF!,'For Office Use Only'!E1:F27,2,FALSE)),"",VLOOKUP(Registration!#REF!,'For Office Use Only'!E1:F27,2,FALSE)) ->  | B64: =IF(ISNA(VLOOKUP(Registration!#REF!,Registration!A12:F110,8,FALSE)),"",VLOOKUP(Registration!#REF!,Registration!A12:F110,8,FALSE)) -> 
A65: =IF(ISNA(VLOOKUP(Registration!#REF!,'For Office Use Only'!E1:F27,2,FALSE)),"",VLOOKUP(Registration!#REF!,'For Office Use Only'!E1:F27,2,FALSE)) ->  | B65: =IF(ISNA(VLOOKUP(Registration!#REF!,Registration!A12:F110,8,FALSE)),"",VLOOKUP(Registration!#REF!,Registration!A12:F110,8,FALSE)) -> 
A66: =IF(ISNA(VLOOKUP(Registration!#REF!,'For Office Use Only'!E1:F27,2,FALSE)),"",VLOOKUP(Registration!#REF!,'For Office Use Only'!E1:F27,2,FALSE)) ->  | B66: =IF(ISNA(VLOOKUP(Registration!#REF!,Registration!A12:F110,8,FALSE)),"",VLOOKUP(Registration!#REF!,Registration!A12:F110,8,FALSE)) -> 
A67: =IF(ISNA(VLOOKUP(Registration!#REF!,'For Office Use Only'!E1:F27,2,FALSE)),"",VLOOKUP(Registration!#REF!,'For Office Use Only'!E1:F27,2,FALSE)) ->  | B67: =IF(ISNA(VLOOKUP(Registration!#REF!,Registration!A12:F110,8,FALSE)),"",VLOOKUP(Registration!#REF!,Registration!A12:F110,8,FALSE)) -> 
A68: =IF(ISNA(VLOOKUP(Registration!#REF!,'For Office Use Only'!E1:F27,2,FALSE)),"",VLOOKUP(Registration!#REF!,'For Office Use Only'!E1:F27,2,FALSE)) ->  | B68: =IF(ISNA(VLOOKUP(Registration!#REF!,Registration!A12:F110,8,FALSE)),"",VLOOKUP(Registration!#REF!,Registration!A12:F110,8,FALSE)) -> 
A69: =IF(ISNA(VLOOKUP(Registration!#REF!,'For Office Use Only'!E1:F27,2,FALSE)),"",VLOOKUP(Registration!#REF!,'For Office Use Only'!E1:F27,2,FALSE)) ->  | B69: =IF(ISNA(VLOOKUP(Registration!#REF!,Registration!A12:F110,8,FALSE)),"",VLOOKUP(Registration!#REF!,Registration!A12:F110,8,FALSE)) -> 
A70: =IF(ISNA(VLOOKUP(Registration!#REF!,'For Office Use Only'!E1:F27,2,FALSE)),"",VLOOKUP(Registration!#REF!,'For Office Use Only'!E1:F27,2,FALSE)) ->  | B70: =IF(ISNA(VLOOKUP(Registration!#REF!,Registration!A12:F110,8,FALSE)),"",VLOOKUP(Registration!#REF!,Registration!A12:F110,8,FALSE)) -> 
A71: =IF(ISNA(VLOOKUP(Registration!#REF!,'For Office Use Only'!E1:F27,2,FALSE)),"",VLOOKUP(Registration!#REF!,'For Office Use Only'!E1:F27,2,FALSE)) ->  | B71: =IF(ISNA(VLOOKUP(Registration!#REF!,Registration!A12:F110,8,FALSE)),"",VLOOKUP(Registration!#REF!,Registration!A12:F110,8,FALSE)) -> 
A72: =IF(ISNA(VLOOKUP(Registration!#REF!,'For Office Use Only'!E1:F27,2,FALSE)),"",VLOOKUP(Registration!#REF!,'For Office Use Only'!E1:F27,2,FALSE)) ->  | B72: =IF(ISNA(VLOOKUP(Registration!#REF!,Registration!A12:F110,8,FALSE)),"",VLOOKUP(Registration!#REF!,Registration!A12:F110,8,FALSE)) -> 
A73: =IF(ISNA(VLOOKUP(Registration!#REF!,'For Office Use Only'!E1:F27,2,FALSE)),"",VLOOKUP(Registration!#REF!,'For Office Use Only'!E1:F27,2,FALSE)) ->  | B73: =IF(ISNA(VLOOKUP(Registration!#REF!,Registration!A12:F110,8,FALSE)),"",VLOOKUP(Registration!#REF!,Registration!A12:F110,8,FALSE)) -> 
A74: =IF(ISNA(VLOOKUP(Registration!#REF!,'For Office Use Only'!E1:F27,2,FALSE)),"",VLOOKUP(Registration!#REF!,'For Office Use Only'!E1:F27,2,FALSE)) ->  | B74: =IF(ISNA(VLOOKUP(Registration!#REF!,Registration!A12:F110,8,FALSE)),"",VLOOKUP(Registration!#REF!,Registration!A12:F110,8,FALSE)) -> 
A75: =IF(ISNA(VLOOKUP(Registration!#REF!,'For Office Use Only'!E1:F27,2,FALSE)),"",VLOOKUP(Registration!#REF!,'For Office Use Only'!E1:F27,2,FALSE)) ->  | B75: =IF(ISNA(VLOOKUP(Registration!#REF!,Registration!A12:F110,8,FALSE)),"",VLOOKUP(Registration!#REF!,Registration!A12:F110,8,FALSE)) -> 
A76: =IF(ISNA(VLOOKUP(Registration!#REF!,'For Office Use Only'!E1:F27,2,FALSE)),"",VLOOKUP(Registration!#REF!,'For Office Use Only'!E1:F27,2,FALSE)) ->  | B76: =IF(ISNA(VLOOKUP(Registration!#REF!,Registration!A12:F110,8,FALSE)),"",VLOOKUP(Registration!#REF!,Registration!A12:F110,8,FALSE)) -> 
A77: =IF(ISNA(VLOOKUP(Registration!#REF!,'For Office Use Only'!E1:F27,2,FALSE)),"",VLOOKUP(Registration!#REF!,'For Office Use Only'!E1:F27,2,FALSE)) ->  | B77: =IF(ISNA(VLOOKUP(Registration!#REF!,Registration!A12:F110,8,FALSE)),"",VLOOKUP(Registration!#REF!,Registration!A12:F110,8,FALSE)) -> 
A78: =IF(ISNA(VLOOKUP(Registration!#REF!,'For Office Use Only'!E1:F27,2,FALSE)),"",VLOOKUP(Registration!#REF!,'For Office Use Only'!E1:F27,2,FALSE)) ->  | B78: =IF(ISNA(VLOOKUP(Registration!#REF!,Registration!A12:F110,8,FALSE)),"",VLOOKUP(Registration!#REF!,Registration!A12:F110,8,FALSE)) -> 
A79: =IF(ISNA(VLOOKUP(Registration!#REF!,'For Office Use Only'!E1:F27,2,FALSE)),"",VLOOKUP(Registration!#REF!,'For Office Use Only'!E1:F27,2,FALSE)) ->  | B79: =IF(ISNA(VLOOKUP(Registration!#REF!,Registration!A12:F110,8,FALSE)),"",VLOOKUP(Registration!#REF!,Registration!A12:F110,8,FALSE)) -> 
A80: =IF(ISNA(VLOOKUP(Registration!#REF!,'For Office Use Only'!E1:F27,2,FALSE)),"",VLOOKUP(Registration!#REF!,'For Office Use Only'!E1:F27,2,FALSE)) ->  | B80: =IF(ISNA(VLOOKUP(Registration!#REF!,Registration!A12:F110,8,FALSE)),"",VLOOKUP(Registration!#REF!,Registration!A12:F110,8,FALSE)) -> 
A81: =IF(ISNA(VLOOKUP(Registration!#REF!,'For Office Use Only'!E1:F27,2,FALSE)),"",VLOOKUP(Registration!#REF!,'For Office Use Only'!E1:F27,2,FALSE)) ->  | B81: =IF(ISNA(VLOOKUP(Registration!#REF!,Registration!A12:F110,8,FALSE)),"",VLOOKUP(Registration!#REF!,Registration!A12:F110,8,FALSE)) -> 
A82: =IF(ISNA(VLOOKUP(Registration!#REF!,'For Office Use Only'!E1:F27,2,FALSE)),"",VLOOKUP(Registration!#REF!,'For Office Use Only'!E1:F27,2,FALSE)) ->  | B82: =IF(ISNA(VLOOKUP(Registration!#REF!,Registration!A12:F110,8,FALSE)),"",VLOOKUP(Registration!#REF!,Registration!A12:F110,8,FALSE)) -> 
A83: =IF(ISNA(VLOOKUP(Registration!#REF!,'For Office Use Only'!E1:F27,2,FALSE)),"",VLOOKUP(Registration!#REF!,'For Office Use Only'!E1:F27,2,FALSE)) ->  | B83: =IF(ISNA(VLOOKUP(Registration!#REF!,Registration!A12:F110,8,FALSE)),"",VLOOKUP(Registration!#REF!,Registration!A12:F110,8,FALSE)) -> 
A84: =IF(ISNA(VLOOKUP(Registration!#REF!,'For Office Use Only'!E1:F27,2,FALSE)),"",VLOOKUP(Registration!#REF!,'For Office Use Only'!E1:F27,2,FALSE)) ->  | B84: =IF(ISNA(VLOOKUP(Registration!#REF!,Registration!A12:F110,8,FALSE)),"",VLOOKUP(Registration!#REF!,Registration!A12:F110,8,FALSE)) -> 
A85: =IF(ISNA(VLOOKUP(Registration!#REF!,'For Office Use Only'!E1:F27,2,FALSE)),"",VLOOKUP(Registration!#REF!,'For Office Use Only'!E1:F27,2,FALSE)) ->  | B85: =IF(ISNA(VLOOKUP(Registration!#REF!,Registration!A12:F110,8,FALSE)),"",VLOOKUP(Registration!#REF!,Registration!A12:F110,8,FALSE)) -> 
A86: =IF(ISNA(VLOOKUP(Registration!#REF!,'For Office Use Only'!E1:F27,2,FALSE)),"",VLOOKUP(Registration!#REF!,'For Office Use Only'!E1:F27,2,FALSE)) ->  | B86: =IF(ISNA(VLOOKUP(Registration!#REF!,Registration!A12:F110,8,FALSE)),"",VLOOKUP(Registration!#REF!,Registration!A12:F110,8,FALSE)) -> 
A87: =IF(ISNA(VLOOKUP(Registration!#REF!,'For Office Use Only'!E1:F27,2,FALSE)),"",VLOOKUP(Registration!#REF!,'For Office Use Only'!E1:F27,2,FALSE)) ->  | B87: =IF(ISNA(VLOOKUP(Registration!#REF!,Registration!A12:F110,8,FALSE)),"",VLOOKUP(Registration!#REF!,Registration!A12:F110,8,FALSE)) -> 
A88: =IF(ISNA(VLOOKUP(Registration!#REF!,'For Office Use Only'!E1:F27,2,FALSE)),"",VLOOKUP(Registration!#REF!,'For Office Use Only'!E1:F27,2,FALSE)) ->  | B88: =IF(ISNA(VLOOKUP(Registration!#REF!,Registration!A12:F110,8,FALSE)),"",VLOOKUP(Registration!#REF!,Registration!A12:F110,8,FALSE)) -> 
A89: =IF(ISNA(VLOOKUP(Registration!#REF!,'For Office Use Only'!E1:F27,2,FALSE)),"",VLOOKUP(Registration!#REF!,'For Office Use Only'!E1:F27,2,FALSE)) ->  | B89: =IF(ISNA(VLOOKUP(Registration!#REF!,Registration!A12:F110,8,FALSE)),"",VLOOKUP(Registration!#REF!,Registration!A12:F110,8,FALSE)) -> 
A90: =IF(ISNA(VLOOKUP(Registration!#REF!,'For Office Use Only'!E1:F27,2,FALSE)),"",VLOOKUP(Registration!#REF!,'For Office Use Only'!E1:F27,2,FALSE)) ->  | B90: =IF(ISNA(VLOOKUP(Registration!#REF!,Registration!A12:F110,8,FALSE)),"",VLOOKUP(Registration!#REF!,Registration!A12:F110,8,FALSE)) -> 
A91: =IF(ISNA(VLOOKUP(Registration!#REF!,'For Office Use Only'!E1:F27,2,FALSE)),"",VLOOKUP(Registration!#REF!,'For Office Use Only'!E1:F27,2,FALSE)) ->  | B91: =IF(ISNA(VLOOKUP(Registration!#REF!,Registration!A12:F110,8,FALSE)),"",VLOOKUP(Registration!#REF!,Registration!A12:F110,8,FALSE)) -> 
A92: =IF(ISNA(VLOOKUP(Registration!#REF!,'For Office Use Only'!E1:F27,2,FALSE)),"",VLOOKUP(Registration!#REF!,'For Office Use Only'!E1:F27,2,FALSE)) ->  | B92: =IF(ISNA(VLOOKUP(Registration!#REF!,Registration!A12:F110,8,FALSE)),"",VLOOKUP(Registration!#REF!,Registration!A12:F110,8,FALSE)) -> 
A93: =IF(ISNA(VLOOKUP(Registration!#REF!,'For Office Use Only'!E1:F27,2,FALSE)),"",VLOOKUP(Registration!#REF!,'For Office Use Only'!E1:F27,2,FALSE)) ->  | B93: =IF(ISNA(VLOOKUP(Registration!#REF!,Registration!A12:F110,8,FALSE)),"",VLOOKUP(Registration!#REF!,Registration!A12:F110,8,FALSE)) -> 
A94: =IF(ISNA(VLOOKUP(Registration!#REF!,'For Office Use Only'!E2:F27,2,FALSE)),"",VLOOKUP(Registration!#REF!,'For Office Use Only'!E2:F27,2,FALSE)) ->  | B94: =IF(ISNA(VLOOKUP(Registration!#REF!,Registration!A12:F110,8,FALSE)),"",VLOOKUP(Registration!#REF!,Registration!A12:F110,8,FALSE)) -> 
A95: =IF(ISNA(VLOOKUP(Registration!#REF!,'For Office Use Only'!E1:F27,2,FALSE)),"",VLOOKUP(Registration!#REF!,'For Office Use Only'!E1:F27,2,FALSE)) ->  | B95: =IF(ISNA(VLOOKUP(Registration!#REF!,Registration!A12:F110,8,FALSE)),"",VLOOKUP(Registration!#REF!,Registration!A12:F110,8,FALSE)) -> 
A96: =IF(ISNA(VLOOKUP(Registration!#REF!,'For Office Use Only'!E1:F27,2,FALSE)),"",VLOOKUP(Registration!#REF!,'For Office Use Only'!E1:F27,2,FALSE)) ->  | B96: =IF(ISNA(VLOOKUP(Registration!#REF!,Registration!A12:F110,8,FALSE)),"",VLOOKUP(Registration!#REF!,Registration!A12:F110,8,FALSE)) -> 
A97: =IF(ISNA(VLOOKUP(Registration!#REF!,'For Office Use Only'!E1:F27,2,FALSE)),"",VLOOKUP(Registration!#REF!,'For Office Use Only'!E1:F27,2,FALSE)) ->  | B97: =IF(ISNA(VLOOKUP(Registration!#REF!,Registration!A12:F110,8,FALSE)),"",VLOOKUP(Registration!#REF!,Registration!A12:F110,8,FALSE)) -> 
A98: =IF(ISNA(VLOOKUP(Registration!#REF!,'For Office Use Only'!E1:F27,2,FALSE)),"",VLOOKUP(Registration!#REF!,'For Office Use Only'!E1:F27,2,FALSE)) ->  | B98: =IF(ISNA(VLOOKUP(Registration!#REF!,Registration!A12:F110,8,FALSE)),"",VLOOKUP(Registration!#REF!,Registration!A12:F110,8,FALSE)) -> 
A99: =IF(ISNA(VLOOKUP(Registration!#REF!,'For Office Use Only'!E1:F27,2,FALSE)),"",VLOOKUP(Registration!#REF!,'For Office Use Only'!E1:F27,2,FALSE)) ->  | B99: =IF(ISNA(VLOOKUP(Registration!#REF!,Registration!A12:F110,8,FALSE)),"",VLOOKUP(Registration!#REF!,Registration!A12:F110,8,FALSE)) -> 
A100: =IF(ISNA(VLOOKUP(Registration!#REF!,'For Office Use Only'!E1:F27,2,FALSE)),"",VLOOKUP(Registration!#REF!,'For Office Use Only'!E1:F27,2,FALSE)) ->  | B100: =IF(ISNA(VLOOKUP(Registration!#REF!,Registration!A12:F110,8,FALSE)),"",VLOOKUP(Registration!#REF!,Registration!A12:F110,8,FALSE)) -> 
A101: =IF(ISNA(VLOOKUP(Registration!#REF!,'For Office Use Only'!E1:F27,2,FALSE)),"",VLOOKUP(Registration!#REF!,'For Office Use Only'!E1:F27,2,FALSE)) ->  | B101: =IF(ISNA(VLOOKUP(Registration!#REF!,Registration!A12:F110,8,FALSE)),"",VLOOKUP(Registration!#REF!,Registration!A12:F110,8,FALSE)) -> 
A102: =IF(ISNA(VLOOKUP(Registration!#REF!,'For Office Use Only'!E1:F27,2,FALSE)),"",VLOOKUP(Registration!#REF!,'For Office Use Only'!E1:F27,2,FALSE)) ->  | B102: =IF(ISNA(VLOOKUP(Registration!#REF!,Registration!A12:F110,8,FALSE)),"",VLOOKUP(Registration!#REF!,Registration!A12:F110,8,FALSE)) -> 
A103: =IF(ISNA(VLOOKUP(Registration!#REF!,'For Office Use Only'!E1:F27,2,FALSE)),"",VLOOKUP(Registration!#REF!,'For Office Use Only'!E1:F27,2,FALSE)) ->  | B103: =IF(ISNA(VLOOKUP(Registration!#REF!,Registration!A12:F110,8,FALSE)),"",VLOOKUP(Registration!#REF!,Registration!A12:F110,8,FALSE)) -> 
A104: =IF(ISNA(VLOOKUP(Registration!#REF!,'For Office Use Only'!E1:F27,2,FALSE)),"",VLOOKUP(Registration!#REF!,'For Office Use Only'!E1:F27,2,FALSE)) ->  | B104: =IF(ISNA(VLOOKUP(Registration!#REF!,Registration!A12:F110,8,FALSE)),"",VLOOKUP(Registration!#REF!,Registration!A12:F110,8,FALSE)) -> 
A105: =IF(ISNA(VLOOKUP(Registration!#REF!,'For Office Use Only'!E1:F27,2,FALSE)),"",VLOOKUP(Registration!#REF!,'For Office Use Only'!E1:F27,2,FALSE)) ->  | B105: =IF(ISNA(VLOOKUP(Registration!#REF!,Registration!A12:F110,8,FALSE)),"",VLOOKUP(Registration!#REF!,Registration!A12:F110,8,FALSE)) -> 
A106: =IF(ISNA(VLOOKUP(Registration!#REF!,'For Office Use Only'!E1:F27,2,FALSE)),"",VLOOKUP(Registration!#REF!,'For Office Use Only'!E1:F27,2,FALSE)) ->  | B106: =IF(ISNA(VLOOKUP(Registration!#REF!,Registration!A12:F110,8,FALSE)),"",VLOOKUP(Registration!#REF!,Registration!A12:F110,8,FALSE)) -> 
A107: =IF(ISNA(VLOOKUP(Registration!#REF!,'For Office Use Only'!E1:F27,2,FALSE)),"",VLOOKUP(Registration!#REF!,'For Office Use Only'!E1:F27,2,FALSE)) ->  | B107: =IF(ISNA(VLOOKUP(Registration!#REF!,Registration!A12:F110,8,FALSE)),"",VLOOKUP(Registration!#REF!,Registration!A12:F110,8,FALSE)) -> 
